Cogmind - Beta 11 X8 @@@ ROGUE MODE // 2021.11.03 @ 14:15:33 Player: blelm Result: Escaped singularity! Performance ------------- Evolutions (9) 4500 Regions Visited (40) 8000 Robots Destroyed (497) 2485 Value Destroyed (26951) 26951 Prototype IDs (101) 2020 Alien Tech Used (14) 2800 Bonus (43124) 43124 TOTAL SCORE: 89880 Bonus ------- High Alert Combat Kills 934 Follower Combat Kills 1190 Entered Garrisons 600 Used RIF Installer 1000 Network Hubs Disabled 200 Aligned with FarCom 300 Met Data Miner 300 Met Zhirov 300 MAIN.C Attacked Warlord 500 Warlord Defense Kill 440 A7 Reached Mainframe 300 Used Core Reset Matrix 3000 Destroyed MAIN.C Guards 500 Met MAIN.C 5000 Hacked MAIN.C 300 Destroyed MAIN.C Shell 5000 Destroyed MAIN.C 10000 Met Architect 300 Destroyed A8 300 Destroyed A6 400 Destroyed A5 500 Destroyed Architect 15000 Win 3000 Friendly Fire -6240 Cogmind --------- Core Integrity 1067/1600 Matter 108/300 Energy 98/100 System Corruption 7% Temperature Cool (0) Movement Core (50) Location Near Former Tau Ceti IV Parts ------- > --- POWER (3) -------- (None) > --- PROPULSION (8) --- (None) > --- UTILITY (11) ----- (None) > --- WEAPON (4) ------- (None) > --- INVENTORY (5) ---- Long-range Terrain Scanner Advanced Force Field Microwarp Drive Hypervelocity Multirail Peak State ------------ > --- POWER ------------ Quantum Reactor Vortex Chain Reactor > --- PROPULSION ------- Advanced Heavy Treads Centrium Heavy Treads Experimental Biometal Heavy Treads Experimental Biometal Heavy Treads > --- UTILITY ---------- Coolant Network Huge Storage Unit Experimental Optical Array Long-range Terrain Scanner Advanced Terrain Scan Processor Experimental Targeting Computer Advanced Armor Integrity Analyzer AEGIS Remote Shield Microwarp Drive > --- WEAPON ----------- Enhanced Nova Cannon Null Cannon Sigix Broadsword > --- INVENTORY -------- Armored Heavy Treads Advanced Heavy Siege Treads Desublimator Experimental Cooling System Experimental Coolant Injector Experimental Energy Well Experimental Energy Well Advanced Matter Compressor Advanced Particle Accelerator Experimental Weapon Cycler Experimental Weapon Cycler Experimental Core Shielding Layered Medium Armor Plating Centrium Medium Armor Plating Heavy Regenerative Plating Advanced Force Field Advanced Force Field Long-range Tractor Beam Heavy Quantum Rifle Hypervelocity Multirail Fusion Bomb Launcher [Rating: 263] Favorites ----------- Power Quantum Reactor Engine Cooled Deuterium Engine Power Core Nuclear Core Reactor Quantum Reactor Propulsion Centrium Heavy Treads Treads Centrium Heavy Treads Leg Experimental Biometal Leg Wheel Armored Huge Wheel Flight Unit Improved Surge Thruster Utility Huge Storage Unit Device Experimental Sensor Array Storage Huge Storage Unit Processor Improved Signal Interpreter Hackware Relay Coupler [NC] Protection Centrium Medium Armor Plating Artifact Phase Armor Weapon Hypervelocity Railgun Energy Gun Heavy Quantum Rifle Energy Cannon Nova Cannon Ballistic Gun Hypervelocity Railgun Ballistic Cannon Gauss Cannon Launcher Grenade Launcher Special Weapon Remote Datajack Slashing Weapon Sigix Broadsword Special Melee Weapon Datajack Build | -11 -10 -10 -10 -9 -8 -8 -8 -8 -7 -7 -7 -7 -7 -7 -6 -6 -6 -6 -6 -6 -5 -5 -5 -5 -4 -4 -4 -4 -4 -4 -4 -3 -3 -3 -2 -2 -2 -1 -1 -1 ------- Run | Scr Mat Min Exi Min Mat Gar Mat Gar Fac Was Fac Low Low Dat Pro Fac Ext Cet Arc Hub Fac Upp Upp War Pro Fac Gar Fac Upp Upp Zhi Pro Res Tes Res Qua Sec Acc Com Ac0 Slots Evolved 18 | . . . . . 4 . . . 2 . . . . . . 2 . . . . 2 . . . . 2 . . . . . . 2 . 2 . . 2 . . Power 2 | . . . . . . . . . . . . . . . . . . . . . 1 . . . . . . . . . . . . . 1 . . . . . Propulsion 6 | . . . . . 2 . . . . . . . . . . . . . . . . . . . . 2 . . . . . . . . . . . 2 . . Utility 9 | . . . . . 1 . . . 2 . . . . . . 2 . . . . 1 . . . . . . . . . . . 2 . 1 . . . . . Weapon 1 | . . . . . 1 . . . . . . . . . . . . . . . . . . . . . . . . . . . . . . . . . . . Parts Attached 1216 | 4 12 5 . 4 47 4 30 4 11 17 28 15 2 2 5 36 27 16 19 3 20 9 8 11 17 9 29 51 13 12 3 8 120 50 45 66 100 64 212 78 Power 50 | . 1 . . . 5 . 2 . 3 2 . . . . 1 . . 2 2 . 2 . . . 1 . 2 1 . . . . 9 1 2 3 . . 8 3 Engine 11 | . 1 . . . 3 . 2 . 3 . . . . . . . . . . . 1 . . . . . 1 . . . . . . . . . . . . . Core 2 | . . . . . 2 . . . . . . . . . . . . . . . . . . . . . . . . . . . . . . . . . . . Reactor 37 | . . . . . . . . . . 2 . . . . 1 . . 2 2 . 1 . . . 1 . 1 1 . . . . 9 1 2 3 . . 8 3 Propulsion 110 | 3 2 . . 2 13 . 10 . . 4 . 1 . . . . 3 3 3 . 2 . . . . 1 1 1 1 . . . 3 . 4 4 4 3 38 4 Treads 85 | 2 1 . . 2 11 . 6 . . 3 . . . . . . 1 3 3 . 1 . . . . 1 1 1 1 . . . 3 . 4 4 4 3 26 4 Leg 12 | . . . . . . . . . . . . . . . . . . . . . . . . . . . . . . . . . . . . . . . 12 . Wheel 12 | 1 1 . . . 2 . 4 . . . . 1 . . . . 2 . . . 1 . . . . . . . . . . . . . . . . . . . Hover . | . . . . . . . . . . . . . . . . . . . . . . . . . . . . . . . . . . . . . . . . . Flight 1 | . . . . . . . . . . 1 . . . . . . . . . . . . . . . . . . . . . . . . . . . . . . Utility 679 | . 4 . . 1 8 2 8 . 4 8 17 10 . . 2 20 15 8 12 3 9 7 4 7 10 4 12 27 8 5 3 4 78 33 34 46 63 38 123 42 Device 538 | . . . . . 5 . 4 . 1 5 9 6 . . 1 11 13 5 11 3 8 7 3 6 8 3 9 21 7 5 3 3 69 31 31 36 56 33 91 34 Storage 30 | . 2 . . . . . 1 . 1 . . . . . . . . . . . . . . . . 1 . . . . . . 2 . 1 5 1 4 12 . Processor 29 | . 1 . . . . 1 . . 1 . . . . . . 3 1 . . . 1 . . . . . . 2 . . . 1 4 . 1 . . . 11 2 Hackware 6 | . . . . . 1 . . . . 1 1 . . . . 1 . . . . . . . . . . . . . . . . . 1 . . . 1 . . Protection 67 | . 1 . . 1 2 1 3 . 1 2 7 4 . . 1 5 1 3 1 . . . 1 1 2 . 3 4 1 . . . 3 1 1 3 . . 9 5 Artifact 9 | . . . . . . . . . . . . . . . . . . . . . . . . . . . . . . . . . . . . 2 6 . . 1 Weapon 377 | 1 5 5 . 1 21 2 10 4 4 3 11 4 2 2 2 16 9 3 2 . 7 2 4 4 6 4 14 22 4 7 . 4 30 16 5 13 33 23 43 29 Energy Gun 34 | . . . . 1 8 . 3 . 1 . . . . . . 1 1 1 . . 2 . 1 2 1 . 3 . . . . . 4 1 . . . . 2 2 Energy Cannon 129 | . . . . . . . . . . . . . . . 1 7 3 . . . 4 1 2 2 2 2 1 12 2 2 . 1 11 6 2 6 20 11 17 14 Ballistic Gun 112 | 1 3 2 . . 5 1 3 1 . 1 1 . . . . . 2 2 2 . 1 1 . . . 1 8 6 . 1 . . 13 6 3 5 12 8 15 8 Ballistic Cannon 38 | . . . . . . . . 3 1 . 6 . 1 2 1 4 1 . . . . . 1 . . 1 1 2 2 3 . 1 2 1 . 1 . 1 3 . Launcher 26 | . 1 3 . . 3 . . . . . 1 2 . . . 1 . . . . . . . . 2 . 1 1 . . . 2 . . . . . 2 3 4 Special Weapon 18 | . 1 . . . 3 . . . . . 1 . . . . 3 2 . . . . . . . 1 . . 1 . 1 . . . 2 . 1 . 1 1 . Impact Weapon . | . . . . . . . . . . . . . . . . . . . . . . . . . . . . . . . . . . . . . . . . . Slashing Weapon 19 | . . . . . 2 1 4 . 2 1 2 2 1 . . . . . . . . . . . . . . . . . . . . . . . 1 . 2 1 Piercing Weapon . | . . . . . . . . . . . . . . . . . . . . . . . . . . . . . . . . . . . . . . . . . Special Melee Weapon 1 | . . . . . . . . . . 1 . . . . . . . . . . . . . . . . . . . . . . . . . . . . . . Unidentified Prototypes 64 | . . . . . 5 . . . 2 1 . . 1 . . 2 . 3 . . . . . 1 . 1 . 1 . 1 2 . 2 4 . 9 5 1 18 5 Corrupted Parts 13 | . . . . . . . . . . . . . . . . . . 2 5 . . . . . . . . . . . . . . . . . 1 . 5 . System Corruption 81 | . . . . . . . . . . . . . . . . . . 8 35 . . . . . . . . . . . . . . . . . 6 . 32 . Parts Lost 42 | . 1 2 . . 1 . . . . . . 2 . . . 1 2 2 . . . . . 1 1 . 2 4 2 . . 1 6 . . . . . 7 7 Power 6 | . 1 . . . . . . . . . . . . . . . . . . . . . . . 1 . . 1 . . . 1 1 . . . . . 1 . Propulsion 9 | . . . . . 1 . . . . . . 1 . . . . 1 1 . . . . . . . . . . 1 . . . 1 . . . . . . 3 Utility 22 | . . 1 . . . . . . . . . 1 . . . 1 1 1 . . . . . 1 . . . 3 1 . . . 4 . . . . . 6 2 Weapon 5 | . . 1 . . . . . . . . . . . . . . . . . . . . . . . . 2 . . . . . . . . . . . . 2 Highest Loss Streak 4 | . 1 2 . . 1 . . . . . . 1 . . . 1 1 2 . . . . . 1 1 . 1 1 2 . . 1 1 . . . . . 4 4 Average Slot Usage (%) 82 | . 99 92 85 99 99 100 99 90 92 85 84 83 84 70 84 85 87 87 80 86 87 87 88 88 87 83 84 83 83 82 84 81 85 85 82 83 81 76 65 68 Engine 2 | . 14 14 14 14 4 9 9 9 7 3 . . . . . . . . . . . 5 5 5 5 5 5 2 . . . . . . . . . . . . Reactor 6 | . . . . . . . . . . 3 7 7 7 7 7 6 6 6 6 6 10 5 5 5 5 5 5 6 10 10 10 6 8 9 11 12 12 11 4 5 Treads 13 | . 25 14 14 14 30 36 26 18 15 8 7 7 7 7 7 6 6 11 13 13 11 11 11 11 11 15 15 15 14 15 15 15 12 13 12 12 11 15 13 14 Wheel 2 | . 2 14 14 14 5 . 9 9 7 7 7 6 7 7 7 6 7 2 . . . . . . . . . . . . . . . . . . . . . . Device 14 | . . . . . 8 8 5 9 15 14 13 14 15 15 15 12 18 17 13 13 11 10 10 11 19 20 15 19 21 19 19 15 20 21 20 18 18 18 11 14 Storage 5 | . 14 14 14 14 9 9 9 9 7 7 7 7 7 7 7 6 6 6 6 6 5 5 5 5 5 5 5 5 5 5 5 5 4 4 4 5 4 3 5 3 Processor 12 | . 3 . . . . . 6 . 7 7 7 7 7 7 7 19 13 20 20 20 23 23 23 23 17 15 15 13 10 10 10 14 16 13 12 12 12 11 12 12 Protection 4 | . 10 9 . 13 9 9 5 9 7 2 8 7 7 7 7 6 7 1 . 6 5 5 5 5 2 . 4 2 4 5 5 5 3 4 4 2 . . 3 3 Energy Gun 1 | . . . . 13 5 . 5 . . . . . . . . . . 5 6 6 . . . . . . 3 . . . . . . . . . . . 1 . Energy Cannon 2 | . . . . . . . . . . . . . . . 3 5 4 . . . 4 4 4 3 4 4 . 4 3 2 5 . 3 3 3 3 3 1 . 5 Ballistic Gun 8 | . 25 12 14 . 17 22 18 24 . 5 1 . . . . . . 12 13 13 11 11 11 11 11 9 10 10 10 10 15 15 10 9 12 12 9 4 3 . Ballistic Cannon 2 | . . . . . . . . 2 18 3 14 15 15 1 15 13 10 . . . . . . . . . . . 1 2 . 3 1 3 . . . . . . Slashing Weapon 1 | . . . . . 2 4 3 . 4 4 5 3 7 7 3 . . . . . . . . . . . . . . . . . . . . . 1 3 2 2 Naked Turns 7 | . . . . . . . . . . . . . . . . . . . . . . . . . . . . . . . . . . . . . . . . 7 Heaviest Build 240 | 12 52 52 49 52 61 67 107 108 111 114 147 134 122 122 129 139 139 121 126 132 150 142 144 148 161 158 154 155 154 160 160 160 191 185 224 237 240 228 240 217 Greatest Support 325 | 40 40 16 16 16 82 82 84 28 28 28 70 28 28 28 28 70 70 150 160 150 150 150 150 150 150 230 230 230 230 230 230 230 230 210 220 225 245 325 325 325 Greatest Overweight (x) 65 | . 3 3 3 3 5 . 4 3 3 4 5 4 4 4 4 4 5 4 . . 5 . . 47 1 . . . . . . . . . 1 1 1 . 65 . Average Overweight (x) 1 | . . 2 3 3 . . 1 3 3 3 3 4 4 3 4 3 4 . . . . . . 3 . . . . . . . . . . . . . . . . Largest Inventory Capacity 25 | 8 20 20 20 20 20 20 25 25 25 25 25 25 25 25 25 25 25 25 25 25 25 25 25 25 25 25 25 25 25 25 25 25 25 25 25 25 25 25 25 25 Average Capacity 24 | 8 15 20 20 20 20 20 22 25 25 25 25 25 25 25 25 25 25 25 25 25 25 25 25 25 25 25 25 25 25 25 25 25 25 25 25 25 25 25 25 24 Most Carried 25 | 6 17 19 18 20 20 20 25 25 25 25 25 25 25 25 25 25 25 25 25 25 25 25 25 25 24 25 25 25 25 24 25 25 25 25 25 25 25 25 25 25 Average Carried 23 | 5 12 18 18 19 19 20 22 24 24 24 24 23 24 25 24 24 24 24 23 25 24 25 25 24 23 24 24 24 23 22 23 25 24 24 24 24 24 24 20 23 Final Capacity 25 | 8 20 20 20 20 20 20 25 25 25 25 25 25 25 25 25 25 25 25 25 25 25 25 25 25 25 25 25 25 25 25 25 25 25 25 25 25 25 25 25 5 Final Carried 25 | 6 17 18 18 20 20 20 25 25 25 25 25 25 25 25 25 25 25 25 25 25 25 25 25 25 23 25 25 25 22 22 25 25 25 24 25 25 25 25 25 5 Class Distribution -------------------- 33% | Scavenger-Mutant 27% | Generator-Mutant 11% | Mutant 7% | Scavenger-Tank 6% | Generator-Assassin 3% | Scavenger-Skirmisher Dominant Class ---------------- Mutant | -10/Materials Mutant | -10/Mines Mutant | -10/Exiles Scavenger-Mutant | -9/Mines Scavenger-Tank | -8/Materials Scavenger-Tank | -8/Garrison Scavenger-Tank | -8/Materials Tank | -8/Garrison Bothacker-Mutant | -7/Factory Bothacker-Mutant | -7/Waste Mutant | -7/Factory Mutant | -7/Lower Caves Scavenger-Mutant | -7/Lower Caves Scavenger-Mutant | -7/Data Miner Scavenger-Mutant | -6/Proximity Caves Scavenger-Mutant | -6/Factory Scavenger-Mutant | -6/Extension Scavenger-Skirmisher | -6/Cetus Scavenger-Gunner | -6/Archives Scavenger-Skirmisher | -6/Hub_04(d) Scavenger-Mutant | -5/Factory Scavenger-Mutant | -5/Upper Caves Scavenger-Mutant | -5/Upper Caves Scavenger-Mutant | -5/Warlord Scavenger-Mutant | -4/Proximity Caves Scavenger-Mutant | -4/Factory Scavenger-Tank | -4/Garrison Scavenger-Mutant | -4/Factory Scavenger-Mutant | -4/Upper Caves Scavenger-Tank | -4/Upper Caves Scavenger-Mutant | -4/Zhirov Scavenger-Tank | -3/Proximity Caves Scavenger-Mutant | -3/Research Mutant | -3/Testing Generator-Mutant | -2/Research Generator-Mutant | -2/Quarantine Generator-Mutant | -2/Section 7 Generator-Assassin | -1/Access Generator-Mutant | -1/Command Generator-Assassin | -1/Access_0 Resources | -11 -10 -10 -10 -9 -8 -8 -8 -8 -7 -7 -7 -7 -7 -7 -6 -6 -6 -6 -6 -6 -5 -5 -5 -5 -4 -4 -4 -4 -4 -4 -4 -3 -3 -3 -2 -2 -2 -1 -1 -1 ----------- Run | Scr Mat Min Exi Min Mat Gar Mat Gar Fac Was Fac Low Low Dat Pro Fac Ext Cet Arc Hub Fac Upp Upp War Pro Fac Gar Fac Upp Upp Zhi Pro Res Tes Res Qua Sec Acc Com Ac0 Matter Collected 24387 | 252 222 138 250 160 828 170 718 411 62 780 944 552 211 . 479 476 721 284 416 78 190 156 142 179 262 . 895 952 493 250 . 398 3119 1083 1356 1430 1396 1013 2287 634 Remotely 6013 | . . . . . . . . . . . 326 62 . . . . 226 284 104 . . . . 124 . . 339 433 204 . . . 856 604 837 . 729 348 389 148 Salvage Created 27693 | 106 267 148 . 61 799 215 1070 497 10 1771 497 405 127 . 204 708 510 313 499 351 303 136 255 124 2 . 1084 785 413 56 . 559 3339 1061 1886 447 2027 2417 2274 1967 Parts 1523 | 9 23 12 . 7 53 15 80 26 3 53 17 10 4 . 8 36 11 21 41 17 19 2 11 3 . . 50 35 7 8 . 30 222 41 112 55 132 147 94 109 Haulers Intercepted 6 | . . . . . 2 . 2 . . . . . . . . . . . . . . . . . . . . . . . . . 1 . . . . 1 . . Recyclers Shooed 18 | . 2 . . 1 1 . . . . . 1 . . . . 3 . . . . . . . . . . . 1 . . . . 2 1 2 . 1 2 1 . Parts Field Recycled 139 | . . . . . . . . . . . . . . . . . . . . . . . . . 4 . 23 . . . . . 17 9 20 46 19 . 1 . Retrieved Matter 2902 | . . . . . . . . . . . . . . . . . . . . . . . . . 16 . 335 . . . . . 395 144 390 1092 373 . 157 . Parts Self-Destructed 146 | . . . . . . . . . . . . 7 . . 3 . . . . . . 1 16 72 . . . . 13 8 . 26 . . . . . . . . Prevented 22 | . . . . . . . . . . . . . . . . . . . . . . . 3 19 . . . . . . . . . . . . . . . . Kills | -11 -10 -10 -10 -9 -8 -8 -8 -8 -7 -7 -7 -7 -7 -7 -6 -6 -6 -6 -6 -6 -5 -5 -5 -5 -4 -4 -4 -4 -4 -4 -4 -3 -3 -3 -2 -2 -2 -1 -1 -1 ------- Run | Scr Mat Min Exi Min Mat Gar Mat Gar Fac Was Fac Low Low Dat Pro Fac Ext Cet Arc Hub Fac Upp Upp War Pro Fac Gar Fac Upp Upp Zhi Pro Res Tes Res Qua Sec Acc Com Ac0 Combat Hostiles Destroyed 355 | . 10 5 . 3 15 4 16 15 . 3 16 10 . . 3 16 7 6 1 3 3 . 4 3 4 . 17 10 6 1 . 14 32 9 19 6 20 22 26 26 Guns 227 | . 7 2 . 1 13 4 16 15 . 3 . . . . . . . 6 1 3 3 . 2 3 . . 12 5 4 1 . 3 19 6 19 6 18 22 13 20 Cannons 56 | . . . . . . . . . . . 9 1 . . 3 9 7 . . . . . . . . . 1 3 2 . . 2 10 3 . . . . 3 3 AOE 58 | . 3 3 . 2 2 . . . . . 7 9 . . . 6 . . . . . . . . 4 . 4 2 . . . 9 . . . . . . 7 . Classes Destroyed 22 | 2 5 1 . 1 2 1 1 . . 4 2 . 1 . 1 . . . . . . . . . . . 1 . . . . . . . . . . . . . Worker 15 | . 2 1 . . 1 . 1 . 1 . . . . . . 1 . . . 1 . . . . . . . . . . . . 2 2 1 . . 2 . . Builder 28 | . . 1 . . . . 1 . . . . . . . . 1 . . . . . . . . . . . 1 . . . . 11 . 1 . 7 5 . . Tunneler 6 | 2 . . . . . . . . . . . . . . . . . . . . 1 . . . . . . . . . . . . . 1 . . 2 . . Hauler 6 | . . . . . 2 . 2 . . . . . . . . . . . . . . . . . . . . . . . . . 1 . . . . 1 . . Recycler 20 | 1 . 1 . . . . 2 . . . 2 . . . . 1 1 . . 1 . . . . . . . 1 . . . . 3 2 2 . 2 1 . . Mechanic 3 | . . . . . . . . . . . . . . . . . . . . . . . . . . . . . . . . . . 1 . . . 1 1 . Operator 15 | . 1 . . . 1 . 2 . . . . . . . . . . . 8 . . . . . . . . . . . . . . 1 . . 1 . 1 . Watcher 24 | . 1 . . . 2 . 4 . . . 1 . . . . 1 . . . . . . . . . . . . . . . . 2 . 3 . 3 6 1 . Swarmer 67 | . 6 3 . 2 4 . 5 7 . . 4 7 . . . 5 . 3 . . . . . . 4 . 4 . . . . 9 . . 4 . . . . . Grunt 92 | . 4 2 . . 7 2 5 7 . . 8 3 . . . 3 2 1 . 2 . . . . . . 9 3 3 . . 4 11 2 4 . . 5 5 . Brawler 5 | . . . . . . . . . . . . . . . . 1 . 1 . . . . . . . . 1 . . . . . . 2 . . . . . . Duelist 3 | . . . . . . . 1 1 . . . . . . . . . . . . . . . . . . . 1 . . . . . . . . . . . . Sentry 32 | . . . . 1 4 . 4 . . . 1 . . . . 2 5 . 1 1 1 . . . . . . 1 . . . 1 5 . . . 3 2 . . Demolisher 1 | . . . . . . . . . . . . . . . . . . . . . . . . . . . . . . . . . . . . . . . 1 . Specialist 5 | . . . . . . 2 . . . . . . . . . . . . . . . . . . . . . . . . . . . . . . . . 3 . Hunter 25 | . . . . . 1 . 1 . . . . . . . . 2 . . . . . . 2 . . . 2 2 2 . . . 3 2 2 . 2 2 2 . Programmer 74 | . . . . . . . . . . . 2 . . . . 3 . . . . 2 . 2 3 . . . 3 . 1 . . 13 3 8 . 13 13 8 . Heavy 2 | . . . . . . . . . . . 1 . . . . . . . . . . . . . . . . . . . . . . . 1 . . . . . Behemoth 3 | . . . . . . . . . . . . . . . . . . . . . . . . . . . 1 . . . . . . . . . 1 . 1 . Compactor 3 | . . . . . . . . . . 3 . . . . . . . . . . . . . . . . . . . . . . . . . . . . . . Cetus Guard 1 | . . . . . . . . . . . . . . . . . . 1 . . . . . . . . . . . . . . . . . . . . . . Quarantine Guard 6 | . . . . . . . . . . . . . . . . . . . . . . . . . . . . . . . . . . . . 6 . . . . S7 Guard 1 | . . . . . . . . . . . . . . . . . . . . . . . . . . . . . . . . . . . . . 1 . . . M Guard 2 | . . . . . . . . . . . . . . . . . . . . . . . . . . . . . . . . . . . . . . . 2 . Enhanced Grunt 17 | . . . . . . . . . . . . . . . 1 . . . 1 . 1 . . . . . . . . . . . . . . . . . . 14 Enhanced Sentry 2 | . . . . . . . . . . . . . . . . . . . . . . . . . . . . . . . . . . . . . . . . 2 Enhanced Hunter 6 | . . . . . . . . . . . . . . . . . . . . . . . . . . . . . . . . . . . . . . . . 6 Combat Programmer 2 | . . . . . . . . . . . . . . . . . . . . . . . . . . . . . . . . . . . . . . . 2 . Decomposer 1 | . . . . . . . . . . . . . 1 . . . . . . . . . . . . . . . . . . . . . . . . . . . Packrat 1 | . . . . . . . . . . . . 1 . . . . . . . . . . . . . . . . . . . . . . . . . . . . Samaritan 2 | . . . . . . . . . . . . . 2 . . . . . . . . . . . . . . . . . . . . . . . . . . . Surgeon 2 | . . . . . . . . . . 2 . . . . . . . . . . . . . . . . . . . . . . . . . . . . . . Wasp 6 | . . . . . . . . . . 6 . . . . . . . . . . . . . . . . . . . . . . . . . . . . . . Thug 10 | . . . . . . . . . . 7 . . . . 1 . 1 . . . . . . . . . . . 1 . . . . . . . . . . . Savage 2 | . . . . . . . . . . 2 . . . . . . . . . . . . . . . . . . . . . . . . . . . . . . Butcher 2 | . . . . . . . . . . . . . . . 1 . 1 . . . . . . . . . . . . . . . . . . . . . . . Martyr 2 | . . . . . . . . . . 2 . . . . . . . . . . . . . . . . . . . . . . . . . . . . . . Mutant 1 | . . . . . . . . . . . . . . . 1 . . . . . . . . . . . . . . . . . . . . . . . . . Best Kill Streak 9 | 2 4 4 . 2 3 2 5 5 1 1 4 4 . . 3 3 3 3 2 3 2 . 2 3 4 . 6 2 3 1 . 5 4 6 5 1 7 9 9 4 Combat Bots Only 9 | . 3 3 . 2 3 2 3 5 . 1 4 4 . . 3 3 3 3 1 3 2 . 2 3 4 . 6 2 3 1 . 5 4 4 4 1 3 6 9 4 Max Kills in Single Turn 3 | 1 2 2 . 1 2 1 1 2 1 1 2 3 1 . 1 3 1 3 1 2 1 . 1 1 2 . 2 2 1 1 . 3 2 2 2 1 2 2 3 1 Gunslinging 1 | . . . . . 1 . . 1 . . . . . . . . . . . 1 . . . . . . 1 1 . . . . 1 . 1 . . 1 . . Exploded 3 | . 2 2 . 1 1 . . . . . 2 3 . . . 3 . . . . . . . . 2 . 2 1 . . . 3 . . . . . . 3 . Melee . | . . . . . . . . . . . . . . . . . . . . . . . . . . . . . . . . . . . . . . . . . Uniques/NPCs Destroyed 6 | . . . . . . . . . . . . . . . . . . . . . . . . . . . . . . . . . . . . . . . 2 4 MAIN.C Shell (-1/Command) MAIN.C (-1/Command) A8 (-1/Access_0) A6 (-1/Access_0) A5 (-1/Access_0) Architect (-1/Access_0) Combat | -11 -10 -10 -10 -9 -8 -8 -8 -8 -7 -7 -7 -7 -7 -7 -6 -6 -6 -6 -6 -6 -5 -5 -5 -5 -4 -4 -4 -4 -4 -4 -4 -3 -3 -3 -2 -2 -2 -1 -1 -1 -------- Run | Scr Mat Min Exi Min Mat Gar Mat Gar Fac Was Fac Low Low Dat Pro Fac Ext Cet Arc Hub Fac Upp Upp War Pro Fac Gar Fac Upp Upp Zhi Pro Res Tes Res Qua Sec Acc Com Ac0 Damage Taken 32566 | . 398 220 . 44 619 137 1047 411 81 . 1131 772 . . 33 618 525 149 . 63 196 . 386 570 148 . 1497 1296 1064 20 . 377 2487 324 752 451 986 493 4829 10442 Core 2154 | . 37 53 . 16 81 . 60 28 . . 47 106 . . 13 13 17 . . . . . 29 20 . . 46 113 69 . . 31 423 . 45 80 421 7 65 334 Absorbed by Shields 19384 | . . . . . . . . . . . . . . . . 19 165 58 . 56 110 . 129 212 112 . 738 653 403 21 . 321 1442 274 627 342 529 532 3570 9071 Reduced by Siege Mode 2395 | . . . . . . . . . . . 24 . . . . 16 33 9 . 4 13 . 22 3 . . 175 55 114 . . 19 149 131 42 6 62 30 515 973 Redirected to Core 241 | . . . . . . . . . . . . . . . . . . . . . . . . . . . . . . . . . . . . 59 182 . . . Core Remaining (%) 75 | 100 . . . 57 . . . 69 . . . . . . 76 . . . . 96 . . . . 95 . . . . . . 77 . 67 . . 51 . . 66 Volleys Fired 2230 | 6 38 28 7 4 65 13 66 34 . 116 47 12 1 . 9 91 66 16 28 7 38 11 22 12 34 12 44 101 64 27 . 21 294 72 66 48 194 109 169 238 Largest 4 | 2 2 2 1 1 3 3 3 3 . 1 3 2 1 . 2 3 2 3 3 3 3 1 3 3 1 1 3 3 3 3 . 4 4 4 4 4 4 2 2 2 Hottest 310 | 70 100 60 23 30 102 76 109 81 . 28 144 96 48 . 96 191 106 150 150 150 150 90 150 310 90 110 195 178 121 121 . 156 280 207 233 170 233 160 200 250 Shots Fired 3568 | 12 67 29 7 4 159 37 185 92 . 114 96 17 2 . 20 103 82 45 72 16 52 11 34 21 34 12 115 149 104 29 . 59 507 128 180 96 277 166 187 248 Gun 2009 | 12 58 24 7 2 141 37 185 92 . 114 10 . . . . . 3 45 72 16 21 . 16 13 . . 107 59 40 2 . 38 265 39 160 61 120 110 67 73 Cannon 1435 | . . . . . . . . . . . 73 6 2 . 20 97 67 . . . 31 11 18 8 28 12 3 81 64 27 . 16 239 87 20 35 157 54 110 169 Launcher 86 | . 6 5 . 2 7 . . . . . 10 11 . . . 4 . . . . . . . . 6 . 5 7 . . . 5 3 . . . . . 9 6 Special 38 | . 3 . . . 11 . . . . . 3 . . . . 2 12 . . . . . . . . . . 2 . . . . . 2 . . . 2 1 . Kinetic 2038 | 6 58 24 7 2 94 37 124 92 . 114 83 6 2 . 19 21 32 31 44 12 14 . 14 9 . 1 81 71 60 3 . 51 268 77 160 61 120 110 81 49 Thermal 1350 | 6 3 . . . 58 . 61 . . . . . . . 1 65 35 14 28 4 38 11 12 12 28 11 29 69 44 26 . 3 206 49 20 35 148 54 87 193 Explosive 86 | . 6 5 . 2 7 . . . . . 10 11 . . . 4 . . . . . . . . 6 . 5 7 . . . 5 3 . . . . . 9 6 Electromagnetic 70 | . . . . . . . . . . . . . . . . 11 3 . . . . . 8 . . . . . . . . . 30 . . . 9 . 9 . Robot Hit Streak 51 | 3 7 5 . 2 11 5 12 7 . 19 30 5 . . 9 11 51 19 14 13 17 9 21 14 1 . 23 16 12 2 . 30 32 10 24 18 20 22 23 23 Robot Miss Streak 7 | 1 5 3 . . 5 4 5 5 . 3 2 2 . . 2 3 3 1 3 . 2 . 2 1 5 3 4 4 4 2 . 4 6 3 4 1 3 6 4 7 Penetration Max 2 | . . . . . . . 1 1 . . 1 . . . . . . 1 1 . 1 . . 1 . . 1 1 . . . . 1 1 2 . 1 1 1 1 Secondary Targets 34 | . . . . . 2 1 1 6 . . . . . . . . . 2 . 1 . . . . . . 4 2 . . . . 1 . 7 . 3 4 . . Max Gunslinging Chain 2 | . . . . . 1 1 1 1 . . . . . . . . . 1 . 1 . . . . . . 2 1 . . . . 1 . 2 . 1 1 . . Capacitor 13 | . . . . . . . . . . . . . . . . . . . . . . . . . . . . . . . . . . . . . . . 13 . Shots Hit Robots 2113 | 7 36 17 . 2 89 20 117 47 1 134 73 13 5 . 12 47 54 40 47 9 17 5 24 7 1 . 90 68 48 2 . 45 253 54 117 39 103 100 174 196 Core Hits 1072 | 4 22 10 . 6 47 6 47 22 1 32 33 19 2 . 5 37 53 19 23 7 7 2 7 4 7 1 45 39 36 1 . 46 91 27 59 16 57 66 83 83 Critical Kills 161 | . . . . . . . 1 . . . . . . . . . . 1 4 1 1 . . . . . 4 4 . 1 . . 12 12 25 6 24 29 14 22 Critical Parts Destroyed 230 | . . . . . 1 . 3 1 . . 1 . . . . . 1 1 4 1 1 . 2 1 . . 10 3 2 . . 1 18 18 39 4 32 43 21 22 Critical Strikes 437 | . . . . . 7 . 4 1 . 2 8 . . . 1 2 1 3 8 2 2 . 2 1 . . 19 8 2 1 . 2 33 30 71 12 57 74 37 47 Burn 6 | . . . . . 6 . . . . . . . . . . . . . . . . . . . . . . . . . . . . . . . . . . . Meltdown 7 | . . . . . . . . . . . . . . . . . . . . . . . . . . . . . . . . . 1 . . . 1 . 2 3 Destroy 412 | . . . . . 1 . 4 1 . 2 1 . . . . . 1 3 8 2 2 . 2 1 . . 19 8 2 1 . 2 32 30 71 12 56 74 33 44 Blast 11 | . . . . . . . . . . . 7 . . . 1 2 . . . . . . . . . . . . . . . . . . . . . . 1 . Corrupt 1 | . . . . . . . . . . . . . . . . . . . . . . . . . . . . . . . . . . . . . . . 1 . Melee Attacks 165 | . . . . . 9 1 8 . 4 42 23 12 8 . 1 . . . . . . . . . . . . . . . . . . . . . 4 9 43 1 Impact . | . . . . . . . . . . . . . . . . . . . . . . . . . . . . . . . . . . . . . . . . . Slashing 159 | . . . . . 9 1 8 . 4 36 23 12 8 . 1 . . . . . . . . . . . . . . . . . . . . . 4 9 43 1 Piercing . | . . . . . . . . . . . . . . . . . . . . . . . . . . . . . . . . . . . . . . . . . Sneak Attacks 55 | . . . . . . . 1 . 1 36 2 1 5 . 1 . . . . . . . . . . . . . . . . . . . . . 2 5 1 . Combat Hostiles 2 | . . . . . . . . . . 2 . . . . . . . . . . . . . . . . . . . . . . . . . . . . . . Follow-up Attacks . | . . . . . . . . . . . . . . . . . . . . . . . . . . . . . . . . . . . . . . . . . Damage Inflicted 78177 | 86 890 584 . 109 1865 343 2122 1091 82 5214 2878 1458 443 . 370 2159 1556 937 1371 522 595 189 649 250 550 7 3259 2402 1178 23 . 1959 7772 1113 1297 303 2401 2978 14432 12740 Guns 27781 | 86 480 220 . 28 1328 343 1970 1091 . 2064 128 . . . . . 72 937 1371 196 513 . 325 250 . . 2353 1238 612 23 . 640 5205 264 1188 303 925 1042 1151 1435 Cannons 30102 | . . . . . . . . . . . 1411 101 . . 289 1566 1410 . . . 66 189 324 . . . 119 576 537 . . 434 1980 777 82 . 964 425 7547 11305 Explosions 8879 | . 410 348 . 76 529 . . . . . 1058 887 . . . 582 49 . . 326 . . . . 550 . 787 495 . . . 885 131 . . . . . 1766 . Melee 10494 | . . . . . . . 91 . 82 3150 281 470 443 . 81 . . . . . . . . . . . . . . . . . . . . . 474 1454 3968 . Ramming 921 | . . 16 . 5 8 . 61 . . . . . . . . 11 25 . . . 16 . . . . 7 . 93 29 . . . 456 72 27 . 38 57 . . Kinetic 30200 | 37 480 220 . 28 872 343 1310 1091 . 2064 1539 101 . . 289 426 975 618 848 123 373 . 316 190 . . 1914 1653 1149 23 . 1074 4833 764 1188 303 925 1042 2554 535 Thermal 26031 | 49 . . . . 456 . 660 . . . . . . . . 826 463 319 523 73 206 189 61 60 . . 558 161 . . . . 1592 277 82 . 823 425 6023 12205 Explosive 8468 | . 410 348 . 76 529 . . . . . 1058 887 . . . 582 . . . . . . . . 550 . 787 459 . . . 885 131 . . . . . 1766 . Electromagnetic 2063 | . . . . . . . . . . . . . . . . 314 93 . . 326 . . 272 . . . . 36 . . . . 760 . . . 141 . 121 . Impact . | . . . . . . . . . . . . . . . . . . . . . . . . . . . . . . . . . . . . . . . . . Slashing 10494 | . . . . . . . 91 . 82 3150 281 470 443 . 81 . . . . . . . . . . . . . . . . . . . . . 474 1454 3968 . Piercing . | . . . . . . . . . . . . . . . . . . . . . . . . . . . . . . . . . . . . . . . . . Highest Corruption 54 | . . . . . 4 4 4 4 4 4 7 9 9 9 9 4 5 13 19 10 2 2 5 5 1 . . 2 2 2 2 2 15 13 7 7 17 5 54 7 Average Corruption 8 | . . . . . 3 4 4 4 4 4 5 7 9 9 9 3 4 10 9 8 1 2 2 3 1 . . 1 2 2 2 2 10 12 3 7 9 2 42 5 Corruption Purged 52 | . . . . . . . . . . . . . . . . 4 . . 40 . . . . . . . . . . . . . 8 . . . . . . . Effects 895 | . . . . . 2 7 41 16 8 28 46 29 25 4 37 2 14 12 24 4 8 8 6 13 5 . . 8 10 6 5 7 129 38 5 93 116 9 100 30 Message Errors 226 | . . . . . 1 2 12 3 2 6 10 8 5 . 11 1 7 4 4 1 2 3 1 3 2 . . 5 2 3 1 4 32 5 2 21 36 3 16 8 Matter Fused 201 | . . . . . . 2 7 5 4 7 13 8 5 . 11 . 6 1 8 . . . . 6 . . . . . . . . 31 13 . 21 20 1 28 4 Heat Flow Errors 120 | . . . . . 1 2 3 3 . 7 1 3 3 . 3 . . 2 . . 4 4 1 1 . . . . 3 . 2 1 14 4 . 16 21 1 15 5 Energy Discharges 122 | . . . . . . 1 4 2 1 1 12 5 5 2 6 . . . 4 1 . 1 3 . 1 . . . 3 2 1 1 12 6 2 13 15 1 13 4 Parts Rejected 3 | . . . . . . . 1 . . 1 . . . . . . . 1 . . . . . . . . . . . . . . . . . . . . . . Data Loss (minor) 111 | . . . . . . . 10 3 1 4 6 2 2 2 3 1 1 2 3 1 2 . . 2 2 . . 3 2 1 1 . 18 4 . 8 12 2 10 3 Data Loss (major) 37 | . . . . . . . . . . . 2 . 4 . 1 . . 1 3 1 . . 1 . . . . . . . . . 7 3 . 6 3 . 5 . Misfires 27 | . . . . . . . . . . . 2 3 1 . 2 . . . 1 . . . . 1 . . . . . . . . 2 . . 6 3 . 5 1 Alerts 7 | . . . . . . . . . . . . . . . . . . . . . . . . . . . . . . . . . 1 2 . . 2 . 2 . Misdirections 1 | . . . . . . . . . . . . . . . . . . . . . . . . . . . . . . . . . . . . . 1 . . . Weapon Failures 40 | . . . . . . . 4 . . 2 . . . . . . . 1 1 . . . . . . . . . . . . 1 12 1 1 2 3 1 6 5 Overload Shots 1 | . . . . . . . . . . . . . . . . . . . . . . . . 1 . . . . . . . . . . . . . . . . Overflow Damage 4379 | . 5 15 . . . . 61 . . 341 191 112 192 . 19 48 94 . . 4 5 25 24 . 61 . 4 33 22 . . . 156 52 . . 226 792 1410 487 Projectiles 1410 | . . . . . . . . . . . 24 2 . . 19 32 43 . . . 5 25 24 . . . . 10 . . . . 67 44 . . 79 69 480 487 Explosions 225 | . 5 15 . . . . . . . . 51 11 . . . 16 36 . . 4 . . . . 61 . 4 5 . . . . . . . . . . 17 . Melee 2744 | . . . . . . . 61 . . 341 116 99 192 . . . 15 . . . . . . . . . . 18 22 . . . 89 8 . . 147 723 913 . Knockbacks 84 | . . . . . . . . . . . 17 2 . . 1 . . . . . . . . . . . . 16 13 . . 7 6 6 . . . . 16 . Impact 9 | . . . . . . . . . . . . . . . . . . . . . . . . . . . . 2 1 . . . 4 2 . . . . . . Kinetic 74 | . . . . . . . . . . . 17 2 . . 1 . . . . . . . . . . . . 14 12 . . 6 2 4 . . . . 16 . Secondary 1 | . . . . . . . . . . . . . . . . . . . . . . . . . . . . . . . . 1 . . . . . . . . Self-Inflicted Damage 696 | . 23 5 . . 15 . . . . . 35 145 . . . 87 . . . 99 . . . . 14 . . 41 . . . 106 26 . . . . . 81 19 Shots 24 | . 2 . . . 1 . . . . . 1 4 . . . 1 . . . 1 . . . . 1 . . 4 . . . 4 1 . . . . . 3 1 Rammed 55 | . . 1 . 2 3 . 7 . . . . . . . . 2 1 . . . . . . . . 1 . 4 1 . . . 21 3 2 . 2 5 . . Targets Rammed 62 | . . 2 . 2 4 . 8 . . . . . . . . 2 1 . . . 1 . . . . 1 . 4 1 . . . 21 4 2 . 3 6 . . Kicked . | . . . . . . . . . . . . . . . . . . . . . . . . . . . . . . . . . . . . . . . . . Crushed 7 | . . 1 . . 1 . 1 . . . . . . . . . . . . . 1 . . . . . . . . . . . . 1 . . 1 1 . . Highest Temperature 755 | 50 64 33 . . 155 151 506 222 . 204 178 247 210 . 214 88 . 191 416 60 178 224 124 153 . . 36 175 248 301 241 227 755 384 . 212 328 86 266 154 Average Temperature 85 | 20 15 15 . . 35 21 111 109 . 78 37 116 85 . 84 35 . 38 97 31 54 89 45 87 . . 15 22 38 110 101 78 85 128 . 86 85 42 111 36 Received Heat Transfer 3014 | . 114 138 . . 273 54 297 126 . . 255 81 . . 9 36 138 4 . 6 13 . . 112 . . 143 252 98 . . 30 138 35 28 12 98 36 90 398 Effects 30 | . . . . . . . 2 . . . . . . . . . . . 2 . . 1 . . . . . . . . . . 22 3 . . . . . . Shutdowns 13 | . . . . . . . 1 . . . . . . . . . . . 1 . . . . . . . . . . . . . 9 2 . . . . . . Energy Bleed 1 | . . . . . . . . . . . . . . . . . . . . . . . . . . . . . . . . . 1 . . . . . . . Interference 3 | . . . . . . . . . . . . . . . . . . . . . . 1 . . . . . . . . . . 2 . . . . . . . Matter Decay 2 | . . . . . . . . . . . . . . . . . . . . . . . . . . . . . . . . . 2 . . . . . . . Short Circuit 1 | . . . . . . . 1 . . . . . . . . . . . . . . . . . . . . . . . . . . . . . . . . . Damage (minor) 2 | . . . . . . . . . . . . . . . . . . . 1 . . . . . . . . . . . . . . 1 . . . . . . Damage (major) 6 | . . . . . . . . . . . . . . . . . . . . . . . . . . . . . . . . . 6 . . . . . . . Damage (core) 2 | . . . . . . . . . . . . . . . . . . . . . . . . . . . . . . . . . 2 . . . . . . . Siege Activations 134 | . . . . . . . . . . 1 6 1 . . 2 6 4 4 1 1 2 . 2 1 . . 7 7 3 1 . 5 15 3 7 6 14 7 10 18 Total Turns 2844 | . . . . . . . . . . 31 110 3 . . 19 59 87 33 1 8 22 . 37 220 . . 137 92 56 2 . 42 234 70 102 68 250 99 728 334 Longest Duration 503 | . . . . . . . . . . 31 48 3 . . 14 21 37 13 1 8 16 . 24 220 . . 41 27 25 2 . 20 47 32 39 15 63 23 503 72 Robots Corrupted 9 | . . . . . . . . . . . . . . . . 1 1 . . . . . 2 . . . . . . . . . 3 . . . 1 . 1 . Combat Hostiles 8 | . . . . . . . . . . . . . . . . 1 . . . . . . 2 . . . . . . . . . 3 . . . 1 . 1 . Parts Fried 21 | . . . . . . . . . . . . . . . . . 4 . . 1 1 . 4 . . . . . . . . . 9 . . . . . 2 . Impact Corruptions 12 | . . . . . . . 1 . . . . . . . . . 1 . . . . . . . . . . 1 1 . . . 6 2 . . . . . . Robots Melted 7 | . . . . . . . . . . . . . . . . . . . . . . . . . . . . . . . . . 1 . . . 1 . 2 3 Combat Hostiles 6 | . . . . . . . . . . . . . . . . . . . . . . . . . . . . . . . . . . . . . 1 . 2 3 Parts Melted 11 | . . . . . 1 . . . . . . . . . . 1 1 . . . . . . . . . 2 . . . . . 3 1 . . 1 . 1 . Heat Transferred 14856 | 148 . . . . 1554 . 1443 . . . . . . . . 550 331 481 814 111 235 125 74 74 . . 851 100 . . . . 1228 259 74 . 570 370 1283 4181 Parts Sabotaged . | . . . . . . . . . . . . . . . . . . . . . . . . . . . . . . . . . . . . . . . . . Parts Stolen . | . . . . . . . . . . . . . . . . . . . . . . . . . . . . . . . . . . . . . . . . . Parts Stripped . | . . . . . . . . . . . . . . . . . . . . . . . . . . . . . . . . . . . . . . . . . Power Chain Reactions 1 | . . . . . . . . . . . . . . . . . 1 . . . . . . . . . . . . . . . . . . . . . . . Missiles Intercepted 1 | . . . . . . . . . . . . . . . . . . . . . . . . . . . . . . . . . . . . . . . 1 . Alert | -11 -10 -10 -10 -9 -8 -8 -8 -8 -7 -7 -7 -7 -7 -7 -6 -6 -6 -6 -6 -6 -5 -5 -5 -5 -4 -4 -4 -4 -4 -4 -4 -3 -3 -3 -2 -2 -2 -1 -1 -1 ------- Run | Scr Mat Min Exi Min Mat Gar Mat Gar Fac Was Fac Low Low Dat Pro Fac Ext Cet Arc Hub Fac Upp Upp War Pro Fac Gar Fac Upp Upp Zhi Pro Res Tes Res Qua Sec Acc Com Ac0 Peak Influence 765 | 15 211 152 . 102 335 229 365 664 348 15 353 . . . . 363 290 311 325 334 427 . . . . 69 590 367 . . . . 765 622 590 406 291 534 317 . Initial 429 | . 9 7 . . . 99 111 154 348 . . . . . . . 102 28 124 . 163 . . . . . 21 309 . . . . 135 429 198 331 74 109 105 . Average 196 | 11 73 24 . 47 202 145 244 365 64 5 140 . . . . 169 114 206 191 79 208 . . . . 33 304 267 . . . . 332 415 390 121 133 208 190 . Maximum Alert Level 3 | . 1 . . . 1 1 1 2 1 . 1 . . . . 1 1 1 1 1 2 . . . . . 2 1 . . . . 3 2 2 2 1 2 3 . Low Security (%) 43 | 100 95 100 . 100 42 85 25 7 90 100 68 . . . . 50 90 39 56 97 50 . . . . 100 31 20 . . . . 22 . 17 82 83 57 2 . Level 1 26 | . 4 . . . 57 14 74 51 9 . 31 . . . . 49 9 60 43 2 48 . . . . . 20 79 . . . . 50 47 40 16 16 37 2 . Level 2 24 | . . . . . . . . 40 . . . . . . . . . . . . . . . . . . 47 . . . . . 18 52 42 1 . 4 77 . Level 3 4 | . . . . . . . . . . . . . . . . . . . . . . . . . . . . . . . . . 7 . . . . . 17 . Level 4 . | . . . . . . . . . . . . . . . . . . . . . . . . . . . . . . . . . . . . . . . . . Level 5 . | . . . . . . . . . . . . . . . . . . . . . . . . . . . . . . . . . . . . . . . . . High Security . | . . . . . . . . . . . . . . . . . . . . . . . . . . . . . . . . . . . . . . . . . Max Security . | . . . . . . . . . . . . . . . . . . . . . . . . . . . . . . . . . . . . . . . . . Squads Dispatched 62 | . 2 . . . 2 . 5 . 1 . 7 . . . . 5 1 . . . 2 . . . . 1 . 2 . . . . 12 3 4 . 7 7 1 . Investigation 6 | . 2 . . . 1 . . . 1 . . . . . . . . . . . . . . . . . . . . . . . . . 1 . . 1 . . Extermination 31 | . . . . . . . . . . . 2 . . . . 3 . . . . 1 . . . . . . 2 . . . . 6 1 3 . 7 5 1 . Reinforcement 20 | . . . . . 1 . 3 . . . 5 . . . . 2 1 . . . 1 . . . . . . . . . . . 5 1 . . . 1 . . Assault 2 | . . . . . . . . . . . . . . . . . . . . . . . . . . . . . . . . . 1 1 . . . . . . Garrison 3 | . . . . . . . 2 . . . . . . . . . . . . . . . . . . 1 . . . . . . . . . . . . . . Intercept . | . . . . . . . . . . . . . . . . . . . . . . . . . . . . . . . . . . . . . . . . . Construction Impeded 1 | . . . . . . . . . . . . . . . . . . . . . . . . . . . . . . . . . 1 . . . . . . . Haulers Reinforced 2 | . . . . . . . . . . . 1 . . . . . . . . . . . . . . . . . . . . . 1 . . . . . . . Active Scanning Responses . | . . . . . . . . . . . . . . . . . . . . . . . . . . . . . . . . . . . . . . . . . Cargo Convoy Interrupts 1 | . . . . . . . . . . . 1 . . . . . . . . . . . . . . . . . . . . . . . . . . . . . Stealth | -11 -10 -10 -10 -9 -8 -8 -8 -8 -7 -7 -7 -7 -7 -7 -6 -6 -6 -6 -6 -6 -5 -5 -5 -5 -4 -4 -4 -4 -4 -4 -4 -3 -3 -3 -2 -2 -2 -1 -1 -1 --------- Run | Scr Mat Min Exi Min Mat Gar Mat Gar Fac Was Fac Low Low Dat Pro Fac Ext Cet Arc Hub Fac Upp Upp War Pro Fac Gar Fac Upp Upp Zhi Pro Res Tes Res Qua Sec Acc Com Ac0 Distress Signals 48 | . . . . . . . 4 . . . 2 . . . . 1 1 1 . 1 . . . 1 . . . 1 . . . . 1 . 2 . . 1 32 . Communications Jammed 202 | . . . . . . . . . . . . . . . . . 1 . . . . . . . . . . 41 . . . . 5 75 19 . 19 20 22 . Distress Signals 192 | . . . . . . . . . . . . . . . . . 1 . . . . . . . . . . 40 . . . . 5 74 11 . 19 20 22 . Times Spotted 588 | . 17 5 . 5 32 4 37 17 . 6 24 10 . . 4 27 16 14 20 6 4 . 4 14 4 1 19 23 6 1 . 14 60 19 28 7 26 34 32 48 Peak Tracking Total 14 | . 3 3 9 3 5 2 5 4 . 3 4 4 . . 2 5 5 5 . 5 1 . 2 14 4 1 5 6 3 1 . 5 6 6 5 1 2 4 12 6 Tactical Retreats 29 | . 1 . . . 1 . . 2 . . . 1 . . 1 5 1 . . . . . . . . . 2 3 . . . . 1 . 2 1 2 1 5 . Traps | -11 -10 -10 -10 -9 -8 -8 -8 -8 -7 -7 -7 -7 -7 -7 -6 -6 -6 -6 -6 -6 -5 -5 -5 -5 -4 -4 -4 -4 -4 -4 -4 -3 -3 -3 -2 -2 -2 -1 -1 -1 ------- Run | Scr Mat Min Exi Min Mat Gar Mat Gar Fac Was Fac Low Low Dat Pro Fac Ext Cet Arc Hub Fac Upp Upp War Pro Fac Gar Fac Upp Upp Zhi Pro Res Tes Res Qua Sec Acc Com Ac0 Traps Triggered 20 | . 1 . . . 2 . . 2 2 . 1 1 . . . . 4 . . . 1 . . . . . . 1 . . . . . . . 1 . 2 2 . Indirectly . | . . . . . . . . . . . . . . . . . . . . . . . . . . . . . . . . . . . . . . . . . Trap Hack Attempts . | . . . . . . . . . . . . . . . . . . . . . . . . . . . . . . . . . . . . . . . . . Triggered . | . . . . . . . . . . . . . . . . . . . . . . . . . . . . . . . . . . . . . . . . . Disarmed . | . . . . . . . . . . . . . . . . . . . . . . . . . . . . . . . . . . . . . . . . . Reprogrammed . | . . . . . . . . . . . . . . . . . . . . . . . . . . . . . . . . . . . . . . . . . Reused . | . . . . . . . . . . . . . . . . . . . . . . . . . . . . . . . . . . . . . . . . . Traps Extracted . | . . . . . . . . . . . . . . . . . . . . . . . . . . . . . . . . . . . . . . . . . Installed . | . . . . . . . . . . . . . . . . . . . . . . . . . . . . . . . . . . . . . . . . . Triggered 21 | . . . . . . . . . . . 4 . . . 1 . . . . . . . . 16 . . . . . . . . . . . . . . . . Machines | -11 -10 -10 -10 -9 -8 -8 -8 -8 -7 -7 -7 -7 -7 -7 -6 -6 -6 -6 -6 -6 -5 -5 -5 -5 -4 -4 -4 -4 -4 -4 -4 -3 -3 -3 -2 -2 -2 -1 -1 -1 ---------- Run | Scr Mat Min Exi Min Mat Gar Mat Gar Fac Was Fac Low Low Dat Pro Fac Ext Cet Arc Hub Fac Upp Upp War Pro Fac Gar Fac Upp Upp Zhi Pro Res Tes Res Qua Sec Acc Com Ac0 Machines Disabled 85 | . 1 2 2 1 1 1 . 2 . . 2 . . . . 4 2 . 2 7 7 . . 1 . 1 1 4 . . . . 3 10 . 13 9 2 3 4 Max in Single Turn 6 | . 1 2 1 1 1 1 . 1 . . 1 . . . . 2 1 . 1 6 6 . . 1 . 1 1 2 . . . . 1 1 . 1 1 1 1 1 Garrison Access 12 | . . . . . . . . . . . 1 . . . . 2 . . . . 1 . . . . . . 2 . . . . 3 1 . . 1 1 . . Garrison Relay 4 | . . . . . . 1 . 2 . . . . . . . . . . . . . . . . . . 1 . . . . . . . . . . . . . Network Hub 1 | . . . . . . . . . . . . . . . . . . . . 1 . . . . . . . . . . . . . . . . . . . . Machines Sabotaged . | . . . . . . . . . . . . . . . . . . . . . . . . . . . . . . . . . . . . . . . . . Garrisons Compromised 1 | . . . . . . . . . . . 1 . . . . . . . . . . . . . . . . . . . . . . . . . . . . . Overloaded Fab Kills . | . . . . . . . . . . . . . . . . . . . . . . . . . . . . . . . . . . . . . . . . . Hacking | -11 -10 -10 -10 -9 -8 -8 -8 -8 -7 -7 -7 -7 -7 -7 -6 -6 -6 -6 -6 -6 -5 -5 -5 -5 -4 -4 -4 -4 -4 -4 -4 -3 -3 -3 -2 -2 -2 -1 -1 -1 --------- Run | Scr Mat Min Exi Min Mat Gar Mat Gar Fac Was Fac Low Low Dat Pro Fac Ext Cet Arc Hub Fac Upp Upp War Pro Fac Gar Fac Upp Upp Zhi Pro Res Tes Res Qua Sec Acc Com Ac0 Machines Accessed 120 | . 5 . 2 . 10 . 4 . 5 . 13 1 1 4 1 8 6 1 . . 5 1 . . . 1 . 8 . . 4 . 9 6 2 9 6 7 1 . Terminals 70 | . 4 . . . 6 . 2 . 3 . 10 . . . 1 6 6 1 . . 2 . . . . . . 3 . . . . 5 4 2 5 5 4 1 . Fabricators 6 | . . . . . . . . . 2 . 1 . . . . . . . . . . . . . . . . 2 . . . . . . . . . 1 . . Repair Stations 7 | . . . . . 1 . 1 . . . . . . . . . . . . . 2 . . . . . . 1 . . . . . 1 . 1 . . . . Recycling Units 2 | . 1 . . . . . . . . . . . . . . . . . . . . . . . . . . . . . . . 1 . . . . . . . Scanalyzers 7 | . . . . . 2 . . . . . 1 . . . . . . . . . . . . . . . . . . . . . . . . 3 . 1 . . Garrison Access 15 | . . . . . 1 . 1 . . . 1 . . . . 2 . . . . 1 . . . . 1 . 2 . . . . 3 1 . . 1 1 . . Total Hacks 309 | . 15 . 2 . 27 . 10 . 9 . 28 1 1 30 1 19 13 2 . . 13 1 . . . 2 . 17 . . 17 . 21 18 4 19 20 16 3 . Successful 167 | . 5 . 2 . 15 . 5 . 5 . 12 1 1 30 1 11 6 1 . . 6 1 . . . 2 . 8 . . 17 . 8 6 2 11 5 5 1 . Failed 142 | . 10 . . . 12 . 5 . 4 . 16 . . . . 8 7 1 . . 7 . . . . . . 9 . . . . 13 12 2 8 15 11 2 . Catastrophic 43 | . 3 . . . 2 . 1 . 1 . 4 . . . . 2 1 . . . 2 . . . . . . 2 . . . . 8 6 1 2 5 3 . . Database Lockouts . | . . . . . . . . . . . . . . . . . . . . . . . . . . . . . . . . . . . . . . . . . Manual 124 | . 15 . 1 . 15 . 6 . 2 . 13 . . . . 13 4 1 . . 3 . . . . 1 . 5 . . . . 10 6 2 3 18 6 . . Terminals 181 | . 14 . . . 16 . 4 . 6 . 21 . . . 1 16 13 2 . . 4 . . . . . . 7 . . . . 14 14 4 11 19 12 3 . Fabricators 12 | . . . . . . . . . 3 . 1 . . . . . . . . . . . . . . . . 6 . . . . . . . . . 2 . . Repair Stations 24 | . . . . . 4 . 3 . . . . . . . . . . . . . 8 . . . . . . 2 . . . . . 3 . 4 . . . . Recycling Units 5 | . 1 . . . . . . . . . . . . . . . . . . . . . . . . . . . . . . . 4 . . . . . . . Scanalyzers 15 | . . . . . 6 . . . . . 4 . . . . . . . . . . . . . . . . . . . . . . . . 4 . 1 . . Garrison Access 20 | . . . . . 1 . 3 . . . 2 . . . . 3 . . . . 1 . . . . 2 . 2 . . . . 3 1 . . 1 1 . . Terminal Hacks 103 | . 4 . 2 . 5 . 1 . 3 . 5 1 1 30 1 6 4 1 . . 1 1 . . . . . 3 . . 17 . 3 2 1 5 3 2 1 . Record 20 | . . . 1 . . . . . . . . . . 11 1 . . . . . . . . . . . . . . . 5 . . . . 2 . . . . Part Schematic 14 | . 1 . . . . . . . . . . . . 9 . . . . . . . . . . . . . . . . 4 . . . . . . . . . Robot Schematic 7 | . . . . . . . . . . . . . . 7 . . . . . . . . . . . . . . . . . . . . . . . . . . Robot Analysis 6 | . 2 . . . . . . . . . . . . . . . . . . . . . . . . . . . . . 4 . . . . . . . . . Prototype ID Bank 7 | . . . . . . . . . . . . . . 3 . . . . . . . . . . . . . . . . 4 . . . . . . . . . Open Door 5 | . . . . . . . . . . . . 1 1 . . . . 1 . . . 1 . . . . . . . . . . . . . . . . 1 . Open DSF 2 | . . . . . . . . . . . . . . . . . . . . . 1 . . . . . . 1 . . . . . . . . . . . . Branch Access Points 6 | . 1 . . . 1 . . . 1 . . . . . . 1 . . . . . . . . . . . 1 . . . . . . . . . 1 . . Terminal Index 3 | . . . . . 1 . . . . . 1 . . . . 1 . . . . . . . . . . . . . . . . . . . . . . . . Scanalyzer Index 1 | . . . . . 1 . . . . . . . . . . . . . . . . . . . . . . . . . . . . . . . . . . . Unreport Threat 9 | . . . . . . . . . 2 . . . . . . 1 . . . . . . . . . . . 1 . . . . 1 . . 1 2 1 . . Locate Traps 12 | . . . . . . . . . . . 1 . . . . 2 2 . . . . . . . . . . . . . . . 2 2 . 2 1 . . . Hauler Manifests 5 | . . . . . 1 . . . . . 2 . . . . . 1 . . . . . . . . . . . . . . . . . 1 . . . . . Zone Layout 5 | . . . . . 1 . 1 . . . 1 . . . . 1 1 . . . . . . . . . . . . . . . . . . . . . . . EX-Prototype ID Bank 1 | . . . 1 . . . . . . . . . . . . . . . . . . . . . . . . . . . . . . . . . . . . . Fabricator Hacks 2 | . . . . . . . . . 1 . . . . . . . . . . . . . . . . . . 1 . . . . . . . . . . . . Network Status 2 | . . . . . . . . . 1 . . . . . . . . . . . . . . . . . . 1 . . . . . . . . . . . . Repair Station Hacks 11 | . . . . . 2 . 1 . . . . . . . . . . . . . 4 . . . . . . 1 . . . . . 1 . 2 . . . . Scan Component 8 | . . . . . 1 . 1 . . . . . . . . . . . . . 3 . . . . . . 1 . . . . . 1 . 1 . . . . Repair 3 | . . . . . 1 . . . . . . . . . . . . . . . 1 . . . . . . . . . . . . . . 1 . . . . Recycling Unit Hacks . | . . . . . . . . . . . . . . . . . . . . . . . . . . . . . . . . . . . . . . . . . Scanalyzer 8 | . . . . . 3 . . . . . 3 . . . . . . . . . . . . . . . . . . . . . . . . 2 . . . . Insert Component 5 | . . . . . 2 . . . . . 1 . . . . . . . . . . . . . . . . . . . . . . . . 2 . . . . Analyze 3 | . . . . . 1 . . . . . 2 . . . . . . . . . . . . . . . . . . . . . . . . . . . . . Garrison Access Hacks 15 | . . . . . 1 . 1 . . . 1 . . . . 2 . . . . 1 . . . . 1 . 2 . . . . 3 1 . . 1 1 . . Unlock Access 3 | . . . . . 1 . 1 . . . . . . . . . . . . . . . . . . 1 . . . . . . . . . . . . . . Seal Access 12 | . . . . . . . . . . . 1 . . . . 2 . . . . 1 . . . . . . 2 . . . . 3 1 . . 1 1 . . Unauthorized Hacks 28 | . 1 . . . 4 . 2 . 1 . 3 . . . . 3 2 . . . . . . . . 1 . 1 . . . . 2 2 1 2 1 2 . . Terminals 19 | . . . . . 4 . . . . . 2 . . . . 2 2 . . . . . . . . . . . . . . . 1 2 1 2 1 2 . . Assimilate 8 | . . . . . 1 . . . . . 2 . . . . . 1 . . . . . . . . . . . . . . . 1 1 . . 1 1 . . Botnet 9 | . . . . . 2 . . . . . . . . . . 1 1 . . . . . . . . . . . . . . . . 1 1 2 . 1 . . Operators 2 | . . . . . 1 . . . . . . . . . . 1 . . . . . . . . . . . . . . . . . . . . . . . . Fabricators 2 | . . . . . . . . . 1 . . . . . . . . . . . . . . . . . . 1 . . . . . . . . . . . . Haulers 2 | . . . . . . . . . 1 . . . . . . . . . . . . . . . . . . 1 . . . . . . . . . . . . Repair Stations 1 | . . . . . . . 1 . . . . . . . . . . . . . . . . . . . . . . . . . . . . . . . . . Mechanics 1 | . . . . . . . 1 . . . . . . . . . . . . . . . . . . . . . . . . . . . . . . . . . Recycling Units 2 | . 1 . . . . . . . . . . . . . . . . . . . . . . . . . . . . . . . 1 . . . . . . . Recyclers 1 | . . . . . . . . . . . . . . . . . . . . . . . . . . . . . . . . . 1 . . . . . . . Tunnel 1 | . 1 . . . . . . . . . . . . . . . . . . . . . . . . . . . . . . . . . . . . . . . Scanalyzers . | . . . . . . . . . . . . . . . . . . . . . . . . . . . . . . . . . . . . . . . . . Garrison Access 4 | . . . . . . . 1 . . . 1 . . . . 1 . . . . . . . . . 1 . . . . . . . . . . . . . . Redirect 1 | . . . . . . . 1 . . . . . . . . . . . . . . . . . . . . . . . . . . . . . . . . . Reprogram 3 | . . . . . . . . . . . 1 . . . . 1 . . . . . . . . . 1 . . . . . . . . . . . . . . Data Cores Recovered 1 | . 1 . . . . . . . . . . . . . . . . . . . . . . . . . . . . . . . . . . . . . . . Used 1 | . 1 . . . . . . . . . . . . . . . . . . . . . . . . . . . . . . . . . . . . . . . Hacking Detections 79 | . 4 . . . 7 . 4 . 5 . 11 . . . . 6 6 1 . . 1 . . . . . . 5 . . . . 6 5 2 7 3 6 . . Full Trace Events 4 | . 1 . . . 1 . . . 1 . . . . . . . . . . . . . . . . . . . . . . . . . . . . 1 . . Feedback Events . | . . . . . . . . . . . . . . . . . . . . . . . . . . . . . . . . . . . . . . . . . Feedback Blocked . | . . . . . . . . . . . . . . . . . . . . . . . . . . . . . . . . . . . . . . . . . Robot Schematics Acquired 7 | . . . . . . . . . . . . . . 7 . . . . . . . . . . . . . . . . . . . . . . . . . . Robots Built . | . . . . . . . . . . . . . . . . . . . . . . . . . . . . . . . . . . . . . . . . . Authchips . | . . . . . . . . . . . . . . . . . . . . . . . . . . . . . . . . . . . . . . . . . Time . | . . . . . . . . . . . . . . . . . . . . . . . . . . . . . . . . . . . . . . . . . Total Robot Build Rating . | . . . . . . . . . . . . . . . . . . . . . . . . . . . . . . . . . . . . . . . . . Part Schematics Acquired 15 | . 1 . . . . . . . . . 1 . . 9 . . . . . . . . . . . . . . . . 4 . . . . . . . . . Parts Built . | . . . . . . . . . . . . . . . . . . . . . . . . . . . . . . . . . . . . . . . . . Authchips . | . . . . . . . . . . . . . . . . . . . . . . . . . . . . . . . . . . . . . . . . . Time . | . . . . . . . . . . . . . . . . . . . . . . . . . . . . . . . . . . . . . . . . . Total Part Build Rating . | . . . . . . . . . . . . . . . . . . . . . . . . . . . . . . . . . . . . . . . . . Parts Repaired 3 | . . . . . 1 . . . . . . . . . . . . . . . 1 . . . . . . . . . . . . . . 1 . . . . Time 252 | . . . . . 136 . . . . . . . . . . . . . . . 54 . . . . . . . . . . . . . . 62 . . . . Parts Recycled . | . . . . . . . . . . . . . . . . . . . . . . . . . . . . . . . . . . . . . . . . . Recycled Matter . | . . . . . . . . . . . . . . . . . . . . . . . . . . . . . . . . . . . . . . . . . Retrieved Matter . | . . . . . . . . . . . . . . . . . . . . . . . . . . . . . . . . . . . . . . . . . Retrieved Components . | . . . . . . . . . . . . . . . . . . . . . . . . . . . . . . . . . . . . . . . . . Parts Scanalyzed 2 | . . . . . 1 . . . . . 1 . . . . . . . . . . . . . . . . . . . . . . . . . . . . . Part Schematics Acquired 1 | . . . . . . . . . . . 1 . . . . . . . . . . . . . . . . . . . . . . . . . . . . . Parts Damaged 1 | . . . . . . . . . . . 1 . . . . . . . . . . . . . . . . . . . . . . . . . . . . . Bothacking | -11 -10 -10 -10 -9 -8 -8 -8 -8 -7 -7 -7 -7 -7 -7 -6 -6 -6 -6 -6 -6 -5 -5 -5 -5 -4 -4 -4 -4 -4 -4 -4 -3 -3 -3 -2 -2 -2 -1 -1 -1 ------------ Run | Scr Mat Min Exi Min Mat Gar Mat Gar Fac Was Fac Low Low Dat Pro Fac Ext Cet Arc Hub Fac Upp Upp War Pro Fac Gar Fac Upp Upp Zhi Pro Res Tes Res Qua Sec Acc Com Ac0 Used RIF Installer 2 | . . . . . . 1 . 1 . . . . . . . . . . . . . . . . . . . . . . . . . . . . . . . . Patrol Navigation 1 | . . . . . . . . 1 . . . . . . . . . . . . . . . . . . . . . . . . . . . . . . . . Robots Hacked 13 | . . . . . . . . . . 6 1 . . . . 2 1 . . . . . . . . . . . . . . . . 1 . . . 1 1 . Non-combat 4 | . . . . . . . . . . . . . . . . 1 1 . . . . . . . . . . . . . . . . 1 . . . 1 . . Combat 8 | . . . . . . . . . . 6 1 . . . . 1 . . . . . . . . . . . . . . . . . . . . . . . . Robot Hacks Applied 14 | . . . . . . . . . . 6 1 . . . . 2 1 . . . . . . . . . . . . . . . . 2 . . . 2 . . ignore_repairs 2 | . . . . . . . . . . . . . . . . 1 1 . . . . . . . . . . . . . . . . . . . . . . . purge_threat 4 | . . . . . . . . . . . . . . . . . . . . . . . . . . . . . . . . . . 2 . . . 2 . . ignore_targets 6 | . . . . . . . . . . 6 . . . . . . . . . . . . . . . . . . . . . . . . . . . . . . overwrite_iff 1 | . . . . . . . . . . . . . . . . 1 . . . . . . . . . . . . . . . . . . . . . . . . formatsys_high 1 | . . . . . . . . . . . 1 . . . . . . . . . . . . . . . . . . . . . . . . . . . . . Manual 1 | . . . . . . . . . . . . . . . . . . . . . . . . . . . . . . . . . . . . . . . 1 . Relay Couplers Released 18 | . . . . . . 4 . 8 . . . . . . . . . . . . . . . . . . 3 . . . . . 3 . . . . . . . Machine Destruction 15 | . . . . . . 4 . 8 . . . . . . . . . . . . . . . . . . 3 . . . . . . . . . . . . . Programmers 3 | . . . . . . . . . . . . . . . . . . . . . . . . . . . . . . . . . 3 . . . . . . . Attached 5 | . . . . . . . . . . 1 1 . . . . 1 . . . . . . . . . . . . . . . . . 1 . . . 1 . . Robots Rewired 8 | . . . . . . . . . . . . . . . . . 8 . . . . . . . . . . . . . . . . . . . . . . . Allies Hacked . | . . . . . . . . . . . . . . . . . . . . . . . . . . . . . . . . . . . . . . . . . Hacks Repelled . | . . . . . . . . . . . . . . . . . . . . . . . . . . . . . . . . . . . . . . . . . Allies | -11 -10 -10 -10 -9 -8 -8 -8 -8 -7 -7 -7 -7 -7 -7 -6 -6 -6 -6 -6 -6 -5 -5 -5 -5 -4 -4 -4 -4 -4 -4 -4 -3 -3 -3 -2 -2 -2 -1 -1 -1 -------- Run | Scr Mat Min Exi Min Mat Gar Mat Gar Fac Was Fac Low Low Dat Pro Fac Ext Cet Arc Hub Fac Upp Upp War Pro Fac Gar Fac Upp Upp Zhi Pro Res Tes Res Qua Sec Acc Com Ac0 Total Allies 51 | . . . . 5 1 . . . . 19 4 . . . 1 1 13 4 . . . . . . . 1 . . . . . . . 1 . . 1 . . . Largest Group 19 | . . . . 4 4 . . . . 19 2 . . . 1 1 8 5 3 1 1 . . . . . 1 . . . . . . 1 1 . 1 . . . Highest-Rated Group 539 | . . . . 72 72 . . . . 477 86 . . . 95 41 320 539 349 95 95 . . . . . 49 . . . . . . 26 26 . 10 . . . Highest-Rated Ally 159 | . . . . 31 31 . . . . 35 43 . . . 95 41 159 159 159 95 95 . . . . . 49 . . . . . . 26 26 . 10 . . . Total Orders 6 | . . . . . . . . . . . . . . . . . 1 . 2 . . . . . . . . . . . . . . . . . 2 . 1 . STAY 2 | . . . . . . . . . . . . . . . . . 1 . . . . . . . . . . . . . . . . . . . 1 . . . ROAM 1 | . . . . . . . . . . . . . . . . . . . 1 . . . . . . . . . . . . . . . . . . . . . FOLLOW 2 | . . . . . . . . . . . . . . . . . . . 1 . . . . . . . . . . . . . . . . . 1 . . . EXPLORE 1 | . . . . . . . . . . . . . . . . . . . . . . . . . . . . . . . . . . . . . . . 1 . Ally Attacks 277 | . . . . 9 37 . . . . 89 20 . . . 12 3 58 20 20 4 . . . . . . 5 . . . . . . . . . . . . . Total Damage 5555 | . . . . 108 406 . . . . 1517 726 . . . 272 61 724 637 839 93 . . . . . . 172 . . . . . . . . . . . . . Kills 34 | . . . . 2 6 . . . . 3 6 . . . . . 6 7 3 1 . . . . . . . . . . . . . . . . . . . . Allies Corrupted 1 | . . . . . . . . . . . . . . . . . 1 . . . . . . . . . . . . . . . . . . . . . . . Allies Melted . | . . . . . . . . . . . . . . . . . . . . . . . . . . . . . . . . . . . . . . . . . Intel | -11 -10 -10 -10 -9 -8 -8 -8 -8 -7 -7 -7 -7 -7 -7 -6 -6 -6 -6 -6 -6 -5 -5 -5 -5 -4 -4 -4 -4 -4 -4 -4 -3 -3 -3 -2 -2 -2 -1 -1 -1 ------- Run | Scr Mat Min Exi Min Mat Gar Mat Gar Fac Was Fac Low Low Dat Pro Fac Ext Cet Arc Hub Fac Upp Upp War Pro Fac Gar Fac Upp Upp Zhi Pro Res Tes Res Qua Sec Acc Com Ac0 Robot Analysis Total 6 | . 2 . . . . . . . . . . . . . . . . . . . . . . . . . . . . . 4 . . . . . . . . . Derelict Logs Recovered 16 | . . . . 1 . . . . . . . 1 3 . 3 . . . . . . 1 1 . 3 . . . 1 2 . . . . . . . . . . Drone Launches 2 | . . . . . . . . . . . . . . . . . . . . . . . . . . . . . . . . . . . . . . . 2 . Drone Recoveries . | . . . . . . . . . . . . . . . . . . . . . . . . . . . . . . . . . . . . . . . . . Exploration | -11 -10 -10 -10 -9 -8 -8 -8 -8 -7 -7 -7 -7 -7 -7 -6 -6 -6 -6 -6 -6 -5 -5 -5 -5 -4 -4 -4 -4 -4 -4 -4 -3 -3 -3 -2 -2 -2 -1 -1 -1 ------------- Run | Scr Mat Min Exi Min Mat Gar Mat Gar Fac Was Fac Low Low Dat Pro Fac Ext Cet Arc Hub Fac Upp Upp War Pro Fac Gar Fac Upp Upp Zhi Pro Res Tes Res Qua Sec Acc Com Ac0 Turns Passed 55246 | 93 812 545 438 867 1668 334 1640 885 691 1322 1739 1009 843 134 999 1561 1294 396 834 169 1004 1000 867 1864 928 406 816 1678 775 731 235 752 4110 1011 1099 3088 3422 1631 10536 1020 Spaces Moved 25575 | 45 389 331 291 563 828 179 839 409 438 591 810 446 510 90 575 713 523 139 364 88 514 596 416 310 364 226 353 803 352 413 141 364 1743 449 349 1582 1321 690 5093 335 Core 55 | . . . . . . . . . . . . . . . . . . . . . . . . 25 . . . . . . . . . . . . . . 18 12 Treads 18036 | 38 302 . . . 477 179 336 . . . 36 . . . . 20 3 122 364 88 513 596 416 285 364 226 353 803 352 413 141 364 1743 449 349 1582 1279 690 4858 295 Legs 224 | 7 . . . . . . . . . . . . . . . . . . . . . . . . . . . . . . . . . . . . . . 217 . Wheels 7190 | . 87 331 291 563 351 . 503 409 438 591 774 446 510 90 575 693 520 17 . . 1 . . . . . . . . . . . . . . . . . . . Hover . | . . . . . . . . . . . . . . . . . . . . . . . . . . . . . . . . . . . . . . . . . Flight . | . . . . . . . . . . . . . . . . . . . . . . . . . . . . . . . . . . . . . . . . . Fastest Speed 50 | 120 145 130 145 145 120 156 120 145 145 145 160 160 160 145 160 160 150 150 160 160 160 160 160 160 160 160 160 160 160 160 160 160 155 158 145 145 145 153 100 50 Average Speed 159 | 153 156 143 145 145 141 156 145 145 145 148 164 160 160 146 160 162 160 163 160 160 160 160 160 340 191 160 160 160 160 160 160 160 155 158 165 162 156 154 160 140 Slowest Speed 3300 | 160 160 145 145 145 156 156 157 145 145 160 240 160 160 160 160 240 240 240 160 160 175 160 160 2400 240 160 160 160 160 160 160 160 160 158 233 225 235 158 3300 163 Overloaded Moves . | . . . . . . . . . . . . . . . . . . . . . . . . . . . . . . . . . . . . . . . . . Propulsion Burnouts . | . . . . . . . . . . . . . . . . . . . . . . . . . . . . . . . . . . . . . . . . . Robots Hopped . | . . . . . . . . . . . . . . . . . . . . . . . . . . . . . . . . . . . . . . . . . Cave-ins Triggered 1 | . . . . . . . . . . . . 1 . . . . . . . . . . . . . . . . . . . . . . . . . . . . Teleports 4 | . . . . . . . . . . . . . . . . . . . . . . . . . . . . . . . . . . . . 2 . . 1 1 Spacefolds 3 | . . . . . . . . . . . . . . . . . . . . . . . . . . . . . . . . . . . . . 3 . . . Microwarps 5 | . . . . . . . . . . . . . . . . . . . . . . . . . . . . . . . . . . . . . 2 . . 3 Exploration Rate (%) 52 | 4 72 60 69 97 48 29 47 66 14 96 22 60 76 69 64 23 63 56 90 17 15 74 65 20 55 7 53 30 60 64 61 62 60 55 19 92 48 26 91 38 Regions Visited 40 Branch Regions 24 Pre-discovered Areas 10 | . 1 . 1 . . . . . . . . . 1 1 1 . . . . . . . . . 2 . . . . . 3 . . . . . . . . . Known Exits Taken 26 | . 1 . . . 1 . 1 . . . 1 1 1 1 1 1 1 1 1 1 1 1 1 1 1 1 . 1 . . . . 1 1 1 1 1 1 . . Unknown Exits Taken 9 | 1 . 1 1 1 . . . . . . . . . . . . . . . . . . . . . . . . 1 1 1 1 . . . . . . 1 . Scrap Searched 18 | . . . . 1 . . . . . . . 1 1 . 2 . . . . . . 4 4 . 2 . . . 1 2 . . . . . . . . . . Spaces Dug 845 | . 8 . . 8 24 . 7 . 3 . 19 6 4 . . 39 18 . . . 25 3 8 8 25 8 . 50 43 26 . 3 142 23 12 19 115 41 15 143 Terrain Destroyed 1850 | . 32 29 . 16 74 . 7 3 3 1 68 142 4 . 7 119 25 1 11 191 86 3 12 14 65 9 38 91 60 26 . 47 198 30 23 26 129 54 17 189 Melee 60 | . . . . . 9 . 7 . 3 . 17 6 3 . . . . . . . . . . . . . . . . . . . . . . . 2 1 11 1 Projectile 851 | . 3 . . . 11 . . 3 . 1 14 2 1 . 7 42 21 1 11 5 32 3 12 14 28 9 4 72 60 26 . 12 189 28 17 24 122 42 4 31 AOE 906 | . 29 29 . 16 54 . . . . . 37 134 . . . 77 4 . . 186 54 . . . 37 . 34 19 . . . 35 7 . . . . . . 154 Terrain Rammed . | . . . . . . . . . . . . . . . . . . . . . . . . . . . . . . . . . . . . . . . . . Walls Destroyed . | . . . . . . . . . . . . . . . . . . . . . . . . . . . . . . . . . . . . . . . . . Machines Disabled . | . . . . . . . . . . . . . . . . . . . . . . . . . . . . . . . . . . . . . . . . . Actions | -11 -10 -10 -10 -9 -8 -8 -8 -8 -7 -7 -7 -7 -7 -7 -6 -6 -6 -6 -6 -6 -5 -5 -5 -5 -4 -4 -4 -4 -4 -4 -4 -3 -3 -3 -2 -2 -2 -1 -1 -1 --------- Run | Scr Mat Min Exi Min Mat Gar Mat Gar Fac Was Fac Low Low Dat Pro Fac Ext Cet Arc Hub Fac Upp Upp War Pro Fac Gar Fac Upp Upp Zhi Pro Res Tes Res Qua Sec Acc Com Ac0 Total 36873 | 58 518 368 300 607 1166 209 1133 642 489 863 1099 705 524 93 639 1000 883 279 557 101 638 629 583 1095 552 256 510 1064 484 465 150 498 2736 650 739 2046 2434 1061 7303 747 Wait 6598 | . 57 1 3 25 164 8 135 176 24 73 161 214 2 . 35 128 242 86 135 4 49 6 136 759 129 . 67 79 51 5 . 106 483 41 256 267 807 163 1435 86 Move 25475 | 44 388 330 290 562 828 178 838 408 438 590 809 445 509 89 574 712 522 138 363 87 513 595 415 309 363 225 352 802 351 412 140 363 1743 448 348 1581 1283 689 5092 309 Hop . | . . . . . . . . . . . . . . . . . . . . . . . . . . . . . . . . . . . . . . . . . Pick Up 346 | 2 15 2 . 5 16 2 17 2 4 6 9 4 1 . 6 14 6 10 3 . 7 . 1 2 1 4 4 7 2 1 3 . 28 10 7 25 14 6 87 13 Fast Attach 379 | . 4 . . 2 10 1 10 . 5 8 3 2 . 2 2 5 1 5 11 . 6 8 . . 7 2 10 13 . 5 4 . 22 12 9 28 11 9 152 10 Attach 133 | 2 1 1 . . 9 . 1 1 2 1 2 2 . . 1 7 4 4 2 . 2 . . . 2 1 2 4 2 4 . . 8 4 3 6 5 2 31 17 Detach 76 | . 1 . . . 2 . 1 . . 1 1 . . . . 2 1 . 1 . . . . . . 1 1 1 . 3 . . 4 2 1 3 4 1 37 8 Swap 717 | 2 7 4 . 2 28 3 19 3 4 8 23 11 2 . 2 24 22 7 6 3 12 1 8 11 8 6 17 34 11 4 . 8 90 34 33 35 86 53 34 52 Drop 655 | 2 7 . . 5 31 3 30 2 8 18 13 3 1 2 9 15 4 13 8 . 10 8 1 2 8 4 13 19 2 4 3 . 44 23 14 53 23 14 223 13 Fire 2230 | 6 38 28 7 4 65 13 66 34 . 116 47 12 1 . 9 91 66 16 28 7 38 11 22 12 34 12 44 101 64 27 . 21 294 72 66 48 194 109 169 238 Melee 165 | . . . . . 9 1 8 . 4 42 23 12 8 . 1 . . . . . . . . . . . . . . . . . . . . . 4 9 43 1 Ram 2 | . . 1 . . 1 . . . . . . . . . . . . . . . . . . . . . . . . . . . . . . . . . . . Kick . | . . . . . . . . . . . . . . . . . . . . . . . . . . . . . . . . . . . . . . . . . Crush 59 | . . 1 . 2 3 . 8 . . . . . . . . 2 1 . . . 1 . . . . 1 . 4 1 . . . 20 4 2 . 3 6 . . Escape Stasis 32 | . . . . . . . . 16 . . 8 . . . . . 8 . . . . . . . . . . . . . . . . . . . . . . . Rewire 6 | . . . . . . . . . . . . . . . . . 6 . . . . . . . . . . . . . . . . . . . . . . . Trap . | . . . . . . . . . . . . . . . . . . . . . . . . . . . . . . . . . . . . . . . . . Miscellaneous . | . . . . . . . . . . . . . . . . . . . . . . . . . . . . . . . . . . . . . . . . . Route ------- -11/Scrapyard -10/Materials (discovered 2 exits: [*Mat] / *Min) -10/Mines (discovered 2 exits: [*Mat] / *Exi) -10/Exiles (discovered 2 exits: [*Min x2]) -9/Mines (discovered 2 exits: *Mat x2) -8/Materials (discovered 3 exits: *Fac / Sto / Gar) -8/Garrison -8/Materials (discovered 4 exits: *Fac / *Sto x2 / Gar) -8/Garrison (discovered 2 exits: *Fac x2) -7/Factory (discovered 2 exits: *Low x2) -7/Waste -7/Factory (discovered 2 exits: *Fac / *Low) -7/Lower Caves -7/Lower Caves (discovered 2 exits: *Fac / *Dat) -7/Data Miner -6/Proximity Caves -6/Factory (discovered 4 exits: *Low x2 / *Ext x2) -6/Extension (discovered 2 exits: *Fac / *Cet) -6/Cetus -6/Archives (discovered 3 exits: *Fac / *Hub x2) -6/Hub_04(d) -5/Factory (discovered 2 exits: *Upp x2) -5/Upper Caves -5/Upper Caves -5/Warlord -4/Proximity Caves -4/Factory (discovered 2 exits: Upp / Gar) -4/Garrison -4/Factory (discovered 2 exits: *Upp x2) -4/Upper Caves -4/Upper Caves (discovered 2 exits: *Res / *Zhi) -4/Zhirov -3/Proximity Caves -3/Research (discovered 4 exits: *Res x3 / *Tes) -3/Testing -2/Research -2/Quarantine (discovered 2 exits: Acc / *Sec) -2/Section 7 -1/Access -1/Command (discovered 3 exits: [*Sur x2] / [*Ac0]) -1/Access_0 Near Former Tau Ceti IV History --------- Turn | Location | Event 10 | -11/Scrapyard | Discovered new exit (range 3) 94 | -11/Scrapyard | Entered Materials 314 | -10/Materials | Build established: Mutant 584 | -10/Materials | Discovered new exit (range 4) 838 | -10/Materials | Identified exit to Mines 906 | -10/Materials | Entered Mines 961 | -10/Mines | Received a Rocket Launcher from a helpful Derelict 1205 | -10/Mines | Discovered new exit (range 7) 1444 | -10/Mines | Deemed a non-threat by the Exiles lab entrance 1445 | -10/Mines | Discovered new exit (range 5) 1451 | -10/Mines | Entered Exiles 1475 | -10/Exiles | Discovered new exit (range 15) 1491 | -10/Exiles | Met 8R-AWN 1509 | -10/Exiles | Met EX-HEX 1601 | -10/Exiles | Met EX-DEC 1625 | -10/Exiles | Learned location of Zion (-6) 1650 | -10/Exiles | Met EX-BIN 1670 | -10/Exiles | Aligned with FarCom system 1672 | -10/Exiles | Given EX-Vault access code 1714 | -10/Exiles | Opened EX-Vault 1747 | -10/Exiles | Warned to stay clear of 0b10 Research branches 1860 | -10/Exiles | Attacked by the Exiles 1877 | -10/Exiles | Discovered new exit (range 10) 1889 | -10/Exiles | Entered Mines 1892 | -9/Mines | Assisted by bots powering up and referring to "LRC-V3" 2122 | -9/Mines | Learned Materials emergency access door positions 2172 | -9/Mines | Discovered new exit (range 7) 2239 | -9/Mines | Discovered new exit (range 10) 2278 | -9/Mines | Build established: Scavenger-Mutant 2434 | -9/Mines | Found a hidden stash of uninstalled traps 2667 | -9/Mines | Found a damaged Exp. Sensor Array with a note attached 2670 | -9/Mines | Found Prototype Device 2756 | -9/Mines | Entered Materials 2756 | -8/Materials | Accompanied by 4 allies 2756 | -8/Materials | Evolved 4 slots: Propulsion x2, Utility x1, Weapon x1 2761 | -8/Materials | Led the pair of lost Derelicts to an unsafe place 3417 | -8/Materials | Discovered new exit (range 8) 3500 | -8/Materials | Identified Exp. Sensor Array 3614 | -8/Materials | Identified exit to Storage 4259 | -8/Materials | Repaired Broken Exp. Sensor Array 4424 | -8/Materials | Identified exit to Garrison 4424 | -8/Materials | Entered Garrison 4432 | -8/Garrison | Installed Relay Interface Framework 4524 | -8/Garrison | Triggered checkpoint 4607 | -8/Garrison | Discovered new exit (range 9) 4630 | -8/Garrison | Triggered checkpoint 4708 | -8/Garrison | Garrison Relay disabled 4757 | -8/Garrison | Identified exit to Materials 4758 | -8/Garrison | Entered Materials 5045 | -8/Materials | Discovered exit to Storage (range 4) 5258 | -8/Materials | Build established: Scavenger-Tank 5282 | -8/Materials | Garrison activated, responded to threat 5531 | -8/Materials | Garrison activated, responded to threat 5812 | -8/Materials | Discovered new exit (range 7) 5878 | -8/Materials | Discovered exit to Storage (range 16) 6317 | -8/Materials | Identified exit to Garrison 6398 | -8/Materials | Entered Garrison 6451 | -8/Garrison | Triggered checkpoint 6484 | -8/Garrison | Triggered checkpoint 6678 | -8/Garrison | Discovered new exit (range 13) 6710 | -8/Garrison | Expanded RIF knowledge: Patrol Navigation 6755 | -8/Garrison | Build established: Tank 6766 | -8/Garrison | Triggered checkpoint 6846 | -8/Garrison | Garrison Relay disabled 7076 | -8/Garrison | Discovered new exit (range 9) 7132 | -8/Garrison | Triggered checkpoint 7206 | -8/Garrison | Garrison Relay disabled 7283 | -8/Garrison | Entered Factory 7283 | -7/Factory | Evolved 2 slots: Utility x2 7349 | -7/Factory | Identified exit to Lower Caves 7847 | -7/Factory | Build established: Bothacker-Mutant 7974 | -7/Factory | Sucked down chute 7974 | -7/Factory | Entered Waste 7991 | -7/Waste | Spotted C-40 Crusher 8003 | -7/Waste | Spotted C-40 Crusher 8055 | -7/Waste | Spotted C-40 Crusher 8055 | -7/Waste | Spotted C-40 Crusher 8059 | -7/Waste | Spotted C-40 Crusher 8177 | -7/Waste | Spotted C-40 Crusher 8309 | -7/Waste | Destroyed C-40 Crusher 8527 | -7/Waste | Destroyed C-40 Crusher 8703 | -7/Waste | Discovered new exit (range 12) 8830 | -7/Waste | Destroyed C-40 Crusher 8907 | -7/Waste | Warlord forces began an assault 9024 | -7/Waste | Allies destroyed C-40 Crusher 9033 | -7/Waste | Allies destroyed C-40 Crusher 9091 | -7/Waste | Allies destroyed C-40 Crusher 9135 | -7/Waste | Build established: Scavenger-Mutant 9274 | -7/Waste | Identified exit to Factory 9296 | -7/Waste | Entered Factory 9775 | -7/Factory | Build established: Mutant 10024 | -7/Factory | Cargo convoy interrupted 10312 | -7/Factory | Discovered new exit (range 16) 10360 | -7/Factory | Identified exit to Factory 10681 | -7/Factory | Discovered exit to Lower Caves (range 6) 11035 | -7/Factory | Entered Lower Caves 11738 | -7/Lower Caves | Spotted B-75 Beast 11846 | -7/Lower Caves | Crushed by falling debris 12001 | -7/Lower Caves | Discovered new exit (range 5) 12005 | -7/Lower Caves | Identified exit to Lower Caves 12044 | -7/Lower Caves | Entered another Lower Caves area 12048 | -7/Lower Caves | Discovered exit to Factory (range 11) 12138 | -7/Lower Caves | Build established: Scavenger-Mutant 12660 | -7/Lower Caves | Learned Factory emergency access door positions 12747 | -7/Lower Caves | Identified exit to Data Miner 12887 | -7/Lower Caves | Entered Data Miner 12888 | -7/Data Miner | Discovered new exit (range 6) 12916 | -7/Data Miner | Met Data Miner 12944 | -7/Data Miner | Learned location of Section 7 (-2) 12944 | -7/Data Miner | Acquired the access code to Warlord's prototype stash 12964 | -7/Data Miner | Received God Mode back door access code from Data Miner 12999 | -7/Data Miner | Identified exit to Proximity Caves 13021 | -7/Data Miner | Entered Proximity Caves 13459 | -6/Proximity Caves | Escorted by Enhanced Grunt 13490 | -6/Proximity Caves | Attacked by a faux Warlord 13726 | -6/Proximity Caves | Learned Factory stockpile data 13815 | -6/Proximity Caves | Learned Factory emergency access door positions 14004 | -6/Proximity Caves | Discovered exit to Factory (range 10) 14020 | -6/Proximity Caves | Entered Factory 14020 | -6/Factory | Evolved 2 slots: Utility x2 14997 | -6/Factory | Identified exit to Lower Caves 14997 | -6/Factory | Identified exit to Extension 15581 | -6/Factory | Entered Extension 16428 | -6/Extension | Rescued a captive Derelict 16553 | -6/Extension | Rescued a captive Derelict 16561 | -6/Extension | Rescued a captive Derelict 16562 | -6/Extension | Rescued a captive Derelict 16781 | -6/Extension | Rescued A7 16829 | -6/Extension | Discovered new exit (range 10) 16831 | -6/Extension | Discovered new exit (range 6) 16865 | -6/Extension | Identified exit to Cetus 16875 | -6/Extension | Entered Cetus 16875 | -6/Cetus | Accompanied by 1 ally (A7) 16880 | -6/Cetus | Acquired a Cetus Manufacturing Module code from A7 16895 | -6/Cetus | Spotted Cetus Guard 16895 | -6/Cetus | Spotted Cetus Guard 16898 | -6/Cetus | Destroyed Cetus Guard 16899 | -6/Cetus | Spotted Cetus Guard 16906 | -6/Cetus | Spotted Cetus Guard 16907 | -6/Cetus | Allies destroyed Cetus Guard 16912 | -6/Cetus | Allies destroyed Cetus Guard 16927 | -6/Cetus | Allies destroyed Cetus Guard 16996 | -6/Cetus | System corruption reached 10% 17150 | -6/Cetus | Escorted A7 to Cetus Mainframe 17162 | -6/Cetus | Started Cetus Manufacturing Module 17181 | -6/Cetus | Discovered new exit (range 16) 17187 | -6/Cetus | Manufactured an Enhanced Grunt 17204 | -6/Cetus | Identified exit to Archives 17212 | -6/Cetus | Manufactured an Enhanced Grunt 17237 | -6/Cetus | Manufactured an Enhanced Grunt 17262 | -6/Cetus | Manufactured an Enhanced Grunt 17263 | -6/Cetus | Build established: Scavenger-Skirmisher 17271 | -6/Cetus | Entered Archives 17271 | -6/Archives | Accompanied by 3 allies (A7) 17276 | -6/Archives | Received a hacking code to weaken MAIN.C 17488 | -6/Archives | Discovered new exit (range 16) 17550 | -6/Archives | Discovered new exit (range 16) 17751 | -6/Archives | Discovered new exit (range 16) 18012 | -6/Archives | Build established: Scavenger-Gunner 18101 | -6/Archives | Identified exit to Hub_04(d) 18105 | -6/Archives | Entered Hub_04(d) 18105 | -6/Hub_04(d) | Accompanied by 1 ally 18152 | -6/Hub_04(d) | Discovered new exit (range 9) 18186 | -6/Hub_04(d) | Identified exit to Factory 18269 | -6/Hub_04(d) | Network Hub disabled 18274 | -6/Hub_04(d) | Entered Factory 18274 | -5/Factory | Accompanied by 1 ally 18274 | -5/Factory | Evolved 2 slots: Power x1, Utility x1 18275 | -5/Factory | Identified exit to Upper Caves 18572 | -5/Factory | Build established: Scavenger-Mutant 19187 | -5/Factory | Discovered exit to Upper Caves (range 4) 19262 | -5/Factory | Repaired Centrium Heavy Treads 19278 | -5/Factory | Entered Upper Caves 19904 | -5/Upper Caves | Discovered new exit (range 6) 19908 | -5/Upper Caves | Encountered a Warlord checkpoint 19910 | -5/Upper Caves | Identified exit to Upper Caves 20169 | -5/Upper Caves | Learned Factory emergency access door positions 20278 | -5/Upper Caves | Entered another Upper Caves area 20486 | -5/Upper Caves | Learned 12 Factory zone layouts 20896 | -5/Upper Caves | Discovered new exit (range 16) 21110 | -5/Upper Caves | Identified exit to Warlord 21145 | -5/Upper Caves | Entered Warlord 21214 | -5/Warlord | Discovered new exit (range 8) 21224 | -5/Warlord | Identified exit to Proximity Caves 21266 | -5/Warlord | Opened side exit 21824 | -5/Warlord | System corruption cleaned by Quarantine Array 22445 | -5/Warlord | Warlord's base attacked by MAIN.C 22795 | -5/Warlord | Warlord forces counterattacked 22884 | -5/Warlord | RIF detected upon attempting to enter Warlord's base 22884 | -5/Warlord | Attacked by Warlord forces 22896 | -5/Warlord | Build established: Scavenger-Skirmisher 23009 | -5/Warlord | Entered Proximity Caves 23213 | -4/Proximity Caves | Build established: Scavenger-Mutant 23451 | -4/Proximity Caves | Learned location of Armory (-3) 23922 | -4/Proximity Caves | Discovered new exit (range 8) 23934 | -4/Proximity Caves | Identified exit to Factory 23937 | -4/Proximity Caves | Entered Factory 23937 | -4/Factory | Evolved 2 slots: Propulsion x2 23938 | -4/Factory | Identified exit to Upper Caves 23963 | -4/Factory | Identified exit to Garrison 24343 | -4/Factory | Entered Garrison 24343 | -4/Garrison | Accompanied by 1 ally 24415 | -4/Garrison | Triggered checkpoint 24458 | -4/Garrison | Spotted B-86 Titan 24535 | -4/Garrison | Destroyed B-86 Titan 24705 | -4/Garrison | Build established: Scavenger-Tank 24815 | -4/Garrison | Discovered new exit (range 13) 24833 | -4/Garrison | Identified exit to Factory 24966 | -4/Garrison | Triggered checkpoint 25010 | -4/Garrison | Garrison Relay disabled 25159 | -4/Garrison | Entered Factory 25465 | -4/Factory | Build established: Scavenger-Mutant 26515 | -4/Factory | Spotted B-86 Titan 26837 | -4/Factory | Entered Upper Caves 26988 | -4/Upper Caves | Encountered a Warlord checkpoint 27009 | -4/Upper Caves | Learned Research trap positions 27070 | -4/Upper Caves | Spotted B-86 Titan 27305 | -4/Upper Caves | Ambushed by wild Derelicts 27607 | -4/Upper Caves | Discovered new exit (range 3) 27612 | -4/Upper Caves | Entered another Upper Caves area 27614 | -4/Upper Caves | Discovered new exit (range 9) 27670 | -4/Upper Caves | Learned Research terminal intel 27729 | -4/Upper Caves | Encountered a Warlord checkpoint 27940 | -4/Upper Caves | Learned Research terminal intel 27953 | -4/Upper Caves | Build established: Scavenger-Tank 28296 | -4/Upper Caves | Found Alien Artifact 28296 | -4/Upper Caves | Identified Core Expander 28296 | -4/Upper Caves | Installed Core Expander, added new Weapon slot 28328 | -4/Upper Caves | Discovered new exit (range 10) 28343 | -4/Upper Caves | Entered Zhirov 28343 | -4/Zhirov | Discovered new exit (range 3) 28372 | -4/Zhirov | Met Zhirov 28397 | -4/Zhirov | Build established: Scavenger-Mutant 28403 | -4/Zhirov | Learned location of Quarantine (-2) 28403 | -4/Zhirov | Learned location of Testing (-3) 28403 | -4/Zhirov | Learned location of Command (-1) 28417 | -4/Zhirov | Zhirov requested help retrieving the SGEMP Prototype 28445 | -4/Zhirov | Found Alien Artifact 28445 | -4/Zhirov | Identified Integrated Reactor 28445 | -4/Zhirov | Installed Integrated Reactor, increased core energy generation (+10) 28467 | -4/Zhirov | Found Alien Artifact 28578 | -4/Zhirov | Entered Proximity Caves 28592 | -3/Proximity Caves | Attracted the attention of an 0b10 checkpoint 28900 | -3/Proximity Caves | Build established: Scavenger-Tank 29318 | -3/Proximity Caves | Discovered new exit (range 8) 29330 | -3/Proximity Caves | Entered Research 29330 | -3/Research | Evolved 2 slots: Utility x2 29331 | -3/Research | Loaded intel: 71 trap records 29332 | -3/Research | Loaded intel: 24 terminal locations 29563 | -3/Research | Build established: Scavenger-Mutant 29627 | -3/Research | Spotted B-86 Titan 30105 | -3/Research | Discovered new exit (range 22) 30138 | -3/Research | Identified exit to Research 30401 | -3/Research | Discovered exit to Research (range 4) 31207 | -3/Research | System corruption reached 10% 31578 | -3/Research | Discovered exit to Research (range 21) 32034 | -3/Research | Found Prototype Device 32149 | -3/Research | Identified Exp. Transmission Jammer 32870 | -3/Research | Found Unknown Device 32870 | -3/Research | Identified Antimissile System 33080 | -3/Research | First assault squad dispatched 33095 | -3/Research | Incoming assault squad redirected 33411 | -3/Research | Discovered new exit (range 20) 33439 | -3/Research | Identified exit to Testing 33440 | -3/Research | Entered Testing 33523 | -3/Testing | Build established: Mutant 33544 | -3/Testing | Found Prototype Hackware 33665 | -3/Testing | Found Prototype Device 33689 | -3/Testing | Identified EM Dispersion Field 33690 | -3/Testing | First assault squad dispatched 33693 | -3/Testing | Identified Ghost Barrier 33695 | -3/Testing | Found EM Dispersion Field 33825 | -3/Testing | Found Prototype Ballistic Gun 33825 | -3/Testing | Identified Hyp. Multirail 33994 | -3/Testing | Discovered exit to Research (range 17) 34067 | -3/Testing | Found Prototype Energy Cannon 34067 | -3/Testing | Identified Null Cannon 34328 | -3/Testing | Found Prototype Processor 34343 | -3/Testing | Identified Exp. Target Analyzer 34451 | -3/Testing | Entered Research 34451 | -2/Research | Accompanied by 1 ally 34451 | -2/Research | Evolved 2 slots: Power x1, Utility x1 34452 | -2/Research | Identified exit to Quarantine 34453 | -2/Research | Loaded intel: 23 terminal locations 34748 | -2/Research | Build established: Generator-Mutant 34818 | -2/Research | Spotted B-90 Cyclops 35550 | -2/Research | Entered Quarantine 35557 | -2/Quarantine | Cryocooling Duct disabled 35559 | -2/Quarantine | Cryocooling Duct disabled 35572 | -2/Quarantine | Ambient heat levels rising (+20) 35572 | -2/Quarantine | Non-combat units ordered to evacuate 35574 | -2/Quarantine | Ambient heat levels rising (+20) 35574 | -2/Quarantine | Combat units ordered to evacuate 35611 | -2/Quarantine | Found Alien Artifact 35611 | -2/Quarantine | Identified Phase Redirector 35636 | -2/Quarantine | Identified Transdimensional Reconstructor 35636 | -2/Quarantine | Warped through subspace 35674 | -2/Quarantine | Quarantine Guard activated 35699 | -2/Quarantine | Found Alien Artifact 35699 | -2/Quarantine | Identified Hpw. Transdimensional Reconstructor 35699 | -2/Quarantine | Warped through subspace 35814 | -2/Quarantine | Spotted Quarantine Guard 35872 | -2/Quarantine | Destroyed Quarantine Guard 35899 | -2/Quarantine | Spotted Quarantine Guard 35907 | -2/Quarantine | Destroyed Quarantine Guard 35972 | -2/Quarantine | Found Hpw. Transdimensional Reconstructor 36028 | -2/Quarantine | Found Transdimensional Reconstructor 36064 | -2/Quarantine | Found Hpw. Transdimensional Reconstructor 36147 | -2/Quarantine | Spotted Quarantine Guard 36195 | -2/Quarantine | Build established: Generator-Skirmisher 36212 | -2/Quarantine | Found Alien Artifact 36242 | -2/Quarantine | Identified Terrabomb 36356 | -2/Quarantine | Repaired Lrn. Terrain Scanner? 36469 | -2/Quarantine | Destroyed Quarantine Guard 36544 | -2/Quarantine | Build established: Generator-Mutant 36612 | -2/Quarantine | Spotted Quarantine Guard 36632 | -2/Quarantine | Destroyed Quarantine Guard 36683 | -2/Quarantine | Found Alien Artifact 37002 | -2/Quarantine | Spotted Quarantine Guard 37016 | -2/Quarantine | Destroyed Quarantine Guard 37174 | -2/Quarantine | Found Alien Artifact 37174 | -2/Quarantine | Identified Phase Armor 37371 | -2/Quarantine | Found Alien Slashing Weapon 37534 | -2/Quarantine | Spotted Quarantine Guard 37683 | -2/Quarantine | Destroyed Quarantine Guard 37761 | -2/Quarantine | Found Alien Artifact 37761 | -2/Quarantine | Identified Subatomic Replicator 37832 | -2/Quarantine | Discovered new exit (range 16) 38348 | -2/Quarantine | Identified Core Reset Matrix 38532 | -2/Quarantine | Spotted Fortress 38632 | -2/Quarantine | Discovered new exit (range 5) 38632 | -2/Quarantine | Spotted Quarantine Guard 38637 | -2/Quarantine | Identified exit to Section 7 38638 | -2/Quarantine | Entered Section 7 38874 | -2/Section 7 | Found Alien Artifact 38874 | -2/Section 7 | Identified Spacefold Activator 39044 | -2/Section 7 | Found Alien Artifact 39785 | -2/Section 7 | Discovered new exit (range 22) 39791 | -2/Section 7 | Spotted B-90 Cyclops 39884 | -2/Section 7 | Spotted B-90 Cyclops 40155 | -2/Section 7 | Found Alien Artifact 40285 | -2/Section 7 | System corruption reached 10% 40500 | -2/Section 7 | Spotted S7 Guard 40523 | -2/Section 7 | Destroyed S7 Guard 40531 | -2/Section 7 | Identified Sigix Broadsword 40546 | -2/Section 7 | Destroyed B-90 Cyclops 40556 | -2/Section 7 | Identified Integrated Mediator 40556 | -2/Section 7 | Installed Integrated Mediator, increased core attachment efficiency. 40560 | -2/Section 7 | Found Alien Artifact 40822 | -2/Section 7 | Build established: Generator-Assassin 41074 | -2/Section 7 | Identified exit to Access 41408 | -2/Section 7 | Found Alien Artifact 41759 | -2/Section 7 | Identified Microwarp Drive 41860 | -2/Section 7 | Found Integrated Reactor 41860 | -2/Section 7 | Installed Integrated Reactor, increased core energy generation (+10) 42060 | -2/Section 7 | Entered Access 42060 | -1/Access | Evolved 2 slots: Propulsion x2 43015 | -1/Access | Found Unknown Launcher 43015 | -1/Access | Identified Fusion Bomb Launcher 43187 | -1/Access | Identified exit to Command 43263 | -1/Access | Found Prototype Launcher 43263 | -1/Access | Identified Mni. Smartbomb Launcher 43691 | -1/Access | Entered Command 43901 | -1/Command | Spotted M Guard 43903 | -1/Command | Spotted M Guard 43903 | -1/Command | Spotted Combat Programmer 43904 | -1/Command | Spotted Combat Programmer 43930 | -1/Command | Destroyed Combat Programmer 43934 | -1/Command | Destroyed M Guard 43942 | -1/Command | Destroyed Combat Programmer 43961 | -1/Command | Destroyed M Guard 43961 | -1/Command | All MAIN.C guards destroyed 43986 | -1/Command | System corruption reached 10% 44001 | -1/Command | Build established: Generator-Mutant 44025 | -1/Command | Found Corrupted Prototype Protection 44025 | -1/Command | Identified Hvy. Regenerative Plating 44028 | -1/Command | Found Corrupted Prototype Device 44028 | -1/Command | Identified Thermal Barrier 44036 | -1/Command | Found Corrupted Prototype Device 44039 | -1/Command | System corruption reached 30% 44116 | -1/Command | Met MAIN.C 44116 | -1/Command | Hacked MAIN.C using A7's code 44128 | -1/Command | 0b10 Conduit disabled 44154 | -1/Command | Destroyed MAIN.C Shell 44155 | -1/Command | MAIN.C activated Command garrisons 44266 | -1/Command | Destroyed 9 combat bots 44273 | -1/Command | Destroyed MAIN.C 44309 | -1/Command | Lost 4 parts (1p3u) 44520 | -1/Command | P-80 Master assimilated allied I-47 Archangel 45148 | -1/Command | Discovered new exit (range 15) 45387 | -1/Command | Found Prototype Processor 45520 | -1/Command | Identified AEGIS Remote Shield 45523 | -1/Command | Identified Core Regenerator 45523 | -1/Command | Identified Integrity Redistributor 45523 | -1/Command | Used Core Reset Matrix 45531 | -1/Command | Found Prototype Device 45531 | -1/Command | Identified Adv. Particle Accelerator 45538 | -1/Command | Found Prototype Reactor 45538 | -1/Command | Identified Singularity Reactor 45546 | -1/Command | Found Prototype Device 45546 | -1/Command | Identified EM Dispersion Field 45553 | -1/Command | Found Prototype Processor 45553 | -1/Command | Identified Exp. Target Analyzer 45797 | -1/Command | Identified Exp. Core Analyzer 45837 | -1/Command | Discovered new exit (range 53) 46329 | -1/Command | Found Fusion Bomb Launcher 46986 | -1/Command | Spotted B-99 Colossus 47196 | -1/Command | Found Unknown Device 47196 | -1/Command | Identified Quantum Capacitor 47231 | -1/Command | Destroyed B-99 Colossus 48368 | -1/Command | Found Prototype Ballistic Gun 48368 | -1/Command | Identified Multirail 48382 | -1/Command | Discovered new exit (range 8) 49227 | -1/Command | Found Corrupted Unknown Device 49240 | -1/Command | Identified Antimissile System 49468 | -1/Command | Found Antimissile System 49667 | -1/Command | Found Prototype Device 49689 | -1/Command | Identified Active Sensor Suite 50353 | -1/Command | Found Quantum Capacitor 53010 | -1/Command | Found Prototype Reactor 53010 | -1/Command | Identified Vortex Chain Reactor 53955 | -1/Command | Used Subatomic Replicator to replicate Null Cannon 54127 | -1/Command | Used Integrity Redistributor, redistributed integrity from core (-153) 54131 | -1/Command | Used Core Regenerator, restored core integrity (+225) 54219 | -1/Command | Warped through subspace to slip node 54219 | -1/Command | Discovered new exit (range 4) 54227 | -1/Command | Entered Access_0 54228 | -1/Access_0 | Sensed 3 artifacts in vicinity 54228 | -1/Access_0 | Met Architect 54271 | -1/Access_0 | Destroyed A8 54281 | -1/Access_0 | Architect warped through subspace 54334 | -1/Access_0 | Architect warped through subspace 54398 | -1/Access_0 | Architect warped through subspace 54448 | -1/Access_0 | Architect warped through subspace 54494 | -1/Access_0 | Architect warped through subspace 54505 | -1/Access_0 | A6 warped into view 54520 | -1/Access_0 | Destroyed A6 54534 | -1/Access_0 | Architect warped through subspace 54606 | -1/Access_0 | Architect warped through subspace 54648 | -1/Access_0 | Architect warped through subspace 54658 | -1/Access_0 | Found Prototype Processor 54671 | -1/Access_0 | Found Prototype Device 54671 | -1/Access_0 | Identified Exp. Weapon Cycler 54674 | -1/Access_0 | Found Prototype Device 54678 | -1/Access_0 | Subspace Access Node disabled 54682 | -1/Access_0 | Found Exp. Weapon Cycler 54708 | -1/Access_0 | Architect warped through subspace 54741 | -1/Access_0 | Identified Exp. Targeting Computer 54752 | -1/Access_0 | Architect warped through subspace 54768 | -1/Access_0 | Subspace Access Node disabled 54800 | -1/Access_0 | Architect warped through subspace 54842 | -1/Access_0 | Architect warped through subspace 54867 | -1/Access_0 | Subspace Access Node disabled 54877 | -1/Access_0 | Architect warped through subspace 54932 | -1/Access_0 | Architect warped through subspace 54964 | -1/Access_0 | Architect warped through subspace 54996 | -1/Access_0 | Architect warped through subspace 55026 | -1/Access_0 | Architect warped through subspace 55052 | -1/Access_0 | Architect warped through subspace 55059 | -1/Access_0 | A5 warped into view 55075 | -1/Access_0 | Destroyed A5 55085 | -1/Access_0 | Architect warped through subspace 55122 | -1/Access_0 | Architect warped through subspace 55207 | -1/Access_0 | Subspace Access Node disabled 55239 | -1/Access_0 | Destroyed Architect 55240 | -1/Access_0 | Architect triggered a singularity event 55240 | -1/Access_0 | Released all parts (18) 55242 | -1/Access_0 | Extracted unknown sensor trigger ID from Architect's data core 55243 | -1/Access_0 | Found Hpw. Transdimensional Reconstructor 55243 | -1/Access_0 | Warped through subspace to slip node 55243 | -1/Access_0 | Discovered new exit (range 8) 55247 | *** | Escaped singularity! Last Messages --------------- 55240_ Released Adv. Heavy Siege Treads. 55240_ Released Quantum Reactor. 55240_ Released Exp. Weapon Cycler. 55240_ Released Fusion Bomb Launcher. 55240_ Released Adv. Particle Accelerator. 55240_ Released Centrium Medium Armor Plating. 55240_ Released Lyr. Medium Armor Plating. 55240_ Released Null Cannon. 55241_ A0_COM: 10. 55242_ A0_COM: 9. 55242_ KE:03MQ>IDY7S FZP&N5C8>Y K 55242_ Acquired data core, extracted unknown sensor trigger ID. 55243_ A0_COM: 8. 55243_ Acquired Hpw. Transdimensional Reconstructor. 55243_ Warped through subspace, drawn to slip node. 55243_ EXIT=FOUND 55244_ A0_COM: 7. 55245_ A0_COM: 6. 55246_ A0_COM: 5. 55247_ A0_COM: 4. Map ----- +----------------------------------------------------+ | | | | | | | | | | | | | | | | | | | | | | | | | | | | | | | | | ?????????????????????????????????????????????????? | | ?????????????????????????????????????????????????? | | ?????????????????????????????????????????????????? | | ?????????????????????????????????????????????????? | | ?????????????????????????????????????????????????? | | ?????????????????????????????????????????????????? | | ????????????????????????###??????????????????????? | | ???????????????????????## ##?????????????????????? | | ???????????????????????# #?????????????????????? | | ???????????????????????# @ #?????????????????????? | | ??????????????????????## #?????????????????????? | | ??????????????????????# #?????????????????????? | | ??????????????????????# ##?????????????????????? | | ??????????????????????## #?????????????????????? | | ??????????????????????# #?????????????????????? | | ??????????????????????# ##?????????????????????? | | ??????????????????????# < #?????????????????????? | | ??????????????????????# ##?????????????????????? | | ??????????????????????## #??????????????????????? | | ???????????????????????####??????????????????????? | | ?????????????????????????????????????????????????? | | ?????????????????????????????????????????????????? | | ?????????????????????????????????????????????????? | | ?????????????????????????????????????????????????? | | ?????????????????????????????????????????????????? | | ?????????????????????????????????????????????????? | | ?????????????????????????????????????????????????? | | ?????????????????????????????????????????????????? | | ?????????????????????????????????????????????????? | | ?????????????????????????????????????????????????? | | ?????????????????????????????????????????????????? | | ?????????????????????????????????????????????????? | | ?????????????????????????????????????????????????? | | ?????????????????????????????????????????????????? | +----------------------------------------------------+ Best States ------------- Heat Dissipation 180 Coolant Potential 120 Energy Generation 96 Energy Capacity 2480 Matter Stores 700 Matter Capacity 700 Sight Range 23 Robot Scan Range 20 Terrain Scan Range 24 Terrain Scan Density 210 Jamming Range 22 Cloak Strength 3 Power Amplification 40 EM Shielding 2 Armor Coverage 1650 Resistance: KI 30 Resistance: TH 50 Resistance: EM 75 Core Shielding 40 Point Defense Rating 240 Weapon Cycling 30 Melee Speed Boost 20 Evasion (%) 55 Targeting Accuracy 12 Melee Accuracy 6 Launcher Accuracy 40 Target Analysis 10 Armor Integrity Analysis 40 Recoil Reduction 8 Energy Filtering 30 Particle Charging 50 Salvage Targeting 4 Stasis Canceling 1 Offensive Hacking 10 Relay Coupler Types 1 Relay Coupler Value 31 Item Schematics ----------------- None Robot Schematics ------------------ None Fabricated ------------ Nothing Alien Tech Used ----------------- Core Expander Integrated Reactor Phase Redirector Transdimensional Reconstructor High-powered Transdimensional Reconstructor Phase Armor Subatomic Replicator Spacefold Activator Sigix Broadsword Integrated Mediator Microwarp Drive Core Reset Matrix Integrity Redistributor Core Regenerator Achievements -------------- None Challenges ------------ None Game ------ Seed DefenseMakeshiftFilter Manual? 0 Play Time 16:19:49 Cumulative 452.5 hours Start 2021.10.26 @ 17:25:32 End 2021.11.03 @ 14:15:33 Sessions 7 Manual Loads 0 Difficulty Rogue Special Mode None Game No. 242 Rogue 242 Adventurer 0 Explorer 0 Win Type 6 Total 20 Types 1/5/4/1/1/1/5/1/1 Lore% 88 Gallery% 89 Achievement% 74 Wizard Run 0 Options --------- ASCII 1 Keyboard 1 Movement Vi Keybinds 0 Fullscreen 2 Font 16/Terminus Map View 75x55 Tactical HUD 1 Map Filters NONE Filters NONE Steam 1 RUN: 19605f60-5312-41d0-949f-cd4e76965550